Workbook

Sheet Data Definition
A1: ITN Mass Campaign Tracker 2024-2026
A3: The ITN Mass Campaign Tracker has been developed for national malaria programmes and partners to have greater visibility of planned ITN mass campaigns and their status. It is a “living document” outlining the campaigns scheduled for the next three years, encompassing the total ITN requirement (campaign + routine/CD), the total number of ITNs funded, etc. The data presented here is gathered from Global Fund applications, PMI malaria operational plans, and ongoing communication with national malaria programs via RBM. - Updates to the table will be made quarterly. - The date of the update can be used to determine whether there is new information available for a country.
A5: Variable | B5: Variable Definition | C5: Type | D5: Example | F5: Comments / discussion points for the call
A6: Country | B6: Name of country | C6: Text | D6: Angola
A7: Geographic target | B7: Geographic target refers to the specific geographic areas or regions targeted for the campaign. "National" indicates targeting at the level of the entire country, while "Sub-national" indicates targeting at a more localized level, such as specific regions, districts, or communities within the country. - National - Sub-national | C7: Drop down | D7: National
A8: Campaign rollout strategy | B8: The ITN campaign rollout strategy outlines how the distribution methods for ITN will be executed. - Single-phase distribution, where all ITNs are distributed at once. - Rolling distribution, where ITNs are distributed continuously over a period. - Multi-phase distribution, involving multiple stages of distribution over time (e.g. pilot distribution first and then remaining targeted areas) - Not available, indicating that specific details on the distribution strategy are not provided or accessible | C8: Drop down | D8: National rolling | F8: Are the proposed options still valid? Do we want to merge the geographic target and roll out strategy?
A9: Detailed geographic target | B9: The detailed geographic target specifies the approach to prioritizing the distribution of ITNs within a country, particularly in relation to urban and non-urban areas, when deprioritization is occurring. The options include - National focus with prioritization of ITNs in urban areas over non-urban areas, - National focus with prioritization of ITNs in non-urban areas over urban areas, or - No prioritization. | C9: Drop down | D9: No deprioritization | F9: Do we wish to monitor this?
A10: State/Region/Province or equivalent | B10: Disaggregated data or information by states, province, or region where available | C10: Text | D10: National
A11: Name of the district or equivalent | B11: Disaggregated data or information by district (or equivalent) level where available | C11: Text | D11: Sub-national
A12: Integration | B12: Integration refers to the coordination between different components within the National Malaria Control Program both internally and externally. Internally, integration involves the alignment between interventions such as Seasonal Malaria Chemoprevention (SMC), Indoor Residual Spraying (IRS), and Malaria Vaccine programs. Externally, integration refers to the NMCP's coordination with other health programs like the Expanded Program on Immunization (EPI), Neglected Tropical Diseases (NTDs), and Vitamin A supplementation initiatives. - Internal NMCP - SCM, IRS, Malaria Vaccine - External NMCP- EPI, NTDs, Vit A (e.g. administration of vitamin A and/or mebendazole, polio vaccination, and so on). - Microplanning - Digital Platform - No integration | C12: Drop down | D12: External NMCP- EPI, NTDs, Vit A | F12: Are there any further integrations of ITN distribution with other health interventions that should be considered/added?
A13: Distribution strategy | B13: - Door to door: distribution teams go from house to house to directly distribute ITNs to residents. - Fixed distribution sites: designated sites such as health centers, schools, or other community locations are set up where beneficiaries can go to receive their ITNs. - Hybrid approach: For example, a distribution campaign might start with door-to-door distribution in scattered rural areas, followed by fixed distribution sites in urban or densely populated areas.
A14: Previous campaign - Month & Year - MMM-YY | B14: The calendar year when the previous campaign occurred, specified by the stated year, serves as a reference point to verify if the ongoing campaign is a continuation from the previous year. | C14: Date | D14: 2021-11-01
A15: Planned ITN distribution campaign year | B15: Calendar year campaign will take place, stated in year | C15: Year | D15: 2023
A16: Month planned (start date) for distribution (in GF grant or PMI MOP or other) | B16: Planned date for start of campaign activity in month/year | C16: Date | D16: 2021-11-01
A17: Population targeted | B17: Number of people targeted for the mass ITN campaign disaggregated to sub-national levels if available | C17: Number | D17: 100000
A18: Number of ITNs planned for campaign distribution | B18: ITNs planned for the campaign based on RBM gap analysis or national malaria programme information | C18: Number | D18: 100000
A19: ITN type | B19: AlphaCypermethrin + Chlorfenapyr (IG2) Pyrethroid-Chlorfenapyr (CFP Dual a.i.) Pyrethroid+Piperonyl Butoxide -PBO Pyrethroid-ONLY (standard) Pyrethroid-pyriproxyfen Other Multi-products | C19: Drop down | D19: CFP Dual a.i
A20: Net brand (hidden on the AMP website) | B20: Brand of the ITN (not publicly disclosed on the AMP website) | C20: Drop down
A21: Number of ITNs distributed (hidden on the AMP website) | B21: Total count of ITNs that have been distributed (not publicly disclosed on the AMP website) | C21: Number
A22: Distribution completion month - MMM-YY | B22: Specific month during which the distribution of the ITNs is completed. | C22: Date | D22: 2021-11-01
A23: Comments on distribution | B23: Additional remarks or notes regarding the distribution process, including any challenges encountered, successes achieved, or other relevant information related to the distribution of ITNs. e.g. more ITNs have been distributed than planned, ITN carried over from previous campaigns etc. | C23: Text
A24: Funding partner (if applicable) for commodities | B24: Partner(s) responsible for financing the procurement of ITNs | C24: Text | D24: PMI
A25: Funding partner (if applicable) for operations | B25: Partner(s) responsible for financing the implementation of the distribution of ITNs | C25: Text | D25: Global Fund
A26: Current campaign phase | B26: Implementation: Ongoing trainings, household registration, ITN distribution or other campaign processes | C26: Drop down | D26: Implementation
B27: Macroplanning: Defining the strategy for all campaign technical areas and developing key documents, timeline and budget (operations, M&E, logistics, social and behaviour change, etc.)
B28: Microplanning: Updating the macroplans for each district targeted for the campaign with information from decentralized levels to reflect actual context for implementation
B29: Not started: Campaign planning has not yet started
B30: Complete : All campaign processes and ITN distribution have been successfully completed Not available : Data is currently unavailable Postponed : The campaign has been delayed or rescheduled for a later time No campaign : No campaign is planned or scheduled Pilot implementation: The campaign is being tested on a smaller scale as a trial run before full implementation.
A31: ITN delivery status | B31: Current condition or progress of the distribution process of ITNs indicating whether ITNs have been received, or are still pending delivery: - Pending ITN arrival - Delivered in-country - Other | C31: Drop down | D31: Pending ITN arrival
A32: Campaign status based on currently planned dates | B32: Refers to the current status of the campaign as determined by the scheduled dates for its various activities and milestones. This status provides an indication of whether the campaign is on track, ahead of schedule, delayed, or completed based on the planned timeline. Off Track: Significant concerns and campaign at risk of significant delay/not taking place in the calendar year planned; intervention required to address bottlenecks and move country planning back to on track At Risk: Some risk that the campaign will run into delays/not take place in calendar year planned; a situation not yet critical but important to watch and ensure that the bottlenecks do not grow and move the country off-track On Track: The campaign is on track to take place in the same calendar year initially planned/there are no significant bottlenecks identified as of the last report date that would move the campaign off track Complete : All campaign processes and ITN distribution have been successfully completed Not available : Data is currently unavailable No campaign : No campaign is planned or scheduled | C32: Color/Text | D32: Off Track
A33: Details on status (hidden on the AMP website) | B33: Additional information or elaboration regarding the current status of the campaign, not visible to users on the AMP website. | C33: Text
A34: Campaign components that will be digitalized | B34: The components of the campaign set to undergo digitalization. | C34: Drop down
A35: Scale of digital data collection | B35: Scale of the deployment of the digital data collection | C35: Text | D35: Full deployment
A36: Platform being used | B36: Digital platform in use | C36: Drop down
A37: Packaging type of nets (individual/bale) | B37: Packaging for mosquito nets typically comes in two primary types: individual packaging and bale packaging. - Individual Packaging: In this approach, each mosquito net is packaged separately in its own packaging - Bale Packaging: In contrast, bale packaging involves bundling multiple mosquito nets together into a larger package or bale. | C37: Drop down | D37: Individual Packaging
A38: Waste management approach | B38: - Reverse Logistics: This approach involves the collection and return of used ITNs to designated collection points or distribution centers. Reverse Logistics systems may include partnerships with local communities, health facilities, or retailers to facilitate the return of ITNs after their useful life. Once collected, ITNs can be refurbished, recycled, or disposed of properly. - Incineration: Incineration is a waste management method that involves burning ITNs at high temperatures to decompose organic materials and destroy any contaminants, including residual insecticides. Incineration can be an effective way to dispose of used ITNs safely, but it requires specialized facilities to ensure proper combustion and emission control to prevent environmental pollution. - Combination approach: Some waste management programs utilize a Combination of methods to address different aspects of ITN disposal. For example, a program might implement Reverse Logistics to collect ITNs from households and health facilities, followed by sorting and segregation of materials For recycling or refurbishment. any ITNs that cannot be recycled or refurbished may then be sent For Incineration or other disposal methods. - Burial in a controlled waste disposal site: If recycling or controlled high temperature incineration are not possible, burial of the insecticide-tainted packaging is an option. | C38: Drop down
A39: Last updated (date) | B39: Date the main data source was last updated | C39: Date | D39: 2021-11-01
A40: Comments/ Details on Status | B40: Provide additional information or details regarding the status. | C40: Text
A44: Specific questions
A45: Do any columns or data points require inclusion in the ITN tracker?
A46: Are there any columns or data points that are unnecessary and can be removed?
A47: Contribution to the update / Frequency and timing of the update: is quarterly updating of the tracker satisfactory
A48: Is it necessary for this team to review the ITN tracker quarterly prior to online publication to AMP website?
A49: How should archived data be handled?
A50: Should any alerts be incorporated into the ITN tracker backend Excel to flag or indicate actions that need to be taken?
A51: USAID/PMI or just PMI?
A52: ops funders?
A53: commodities funders
A55: Update procedure:
A56: Orianne will revise the tracker using data from sitreps, the AMP weekly call, and emails.
A57: Orianne will arrange a meeting with Marcy and Giovanni a week before quarterly ends
A58: Emails will be sent to partners during the first week of each month.
A59: Orianne will send updates to Todd on the second Monday of each month

Sheet 2024-2026 tracker
A1: ITN Maaa Campaign Tracker 2024-2026
Q7: Funding partner | V7: Digitalization | Y7: Waste management
A8: Country | B8: Environment - Rainy season period | C8: Planned ITN distribution campaign year | D8: Geographic target | F8: Distribution strategy | G8: Detailed geographic target (if prioritization of specific areas for ITN distribution) | H8: State/Region/Province or equivalent | I8: Name of the district or equivalent | J8: Integration | K8: Month planned (start date) for distribution | L8: Population targeted | M8: ITN Types | N8: Total | O8: Distribution completion month - MMM-YY | P8: Comments on distribution | Q8: Funding partner for commodities | R8: Funding partner for operations | S8: Current campaign phase | T8: ITN delivery status | U8: Campaign status based on currently planned dates | V8: Campaign components that will be digitalized | W8: Scale of digital data collection | X8: Platform being used | Y8: Packaging type of nets (individual/bulk) | Z8: Waste management approach | AA8: Comments/ details on status
A9: Afghanistan | B9: Spring rainy season: The first rainy season occurs during spring, typically from March to May. During this time, rainfall is more frequent in the northern and central regions of the country, including Kabul and the Hindu Kush mountain range. Summer Rainy Season: The second rainy season occurs during summer, usually from June to September. This period is characterized by the arrival of the southwest monsoon, which brings heavy rainfall to the southern and eastern parts of Afghanistan, particularly in the provinces bordering Pakistan. | C9: 2024 | D9: No campaign this year | G9: National focus with prioritization of ITNs in non-urban areas over urban areas | H9: Nangarhar | I9: Behsood & Chaprahar | K9: 2024-02-24 | M9: Multi-products | N9: =IF(M9=ITNs!$E$8, ITNs!E9, IF(M9=ITNs!$B$8, ITNs!B9, IF(M9=ITNs!$C$8, ITNs!C9, IF(M9=ITNs!$D$8, ITNs!D9, IF(M9=ITNs!$E$8, ITNs!E9, IF(M9=ITNs!$F$8, ITNs!F9, IF(M9=ITNs!$G$8, ITNs!G9, IF(M9=ITNs!$H$8, ITNs!H9, "ERROR")))))))) -> 300000 | AA9: This is routine. No campaign in 2024
A10: Afghanistan | B10: Spring Rainy Season: The first rainy season occurs during spring, typically from March to May. During this time, rainfall is more frequent in the northern and central regions of the country, including Kabul and the Hindu Kush mountain range. Summer Rainy Season: The second rainy season occurs during summer, usually from June to September. This period is characterized by the arrival of the southwest monsoon, which brings heavy rainfall to the southern and eastern parts of Afghanistan, particularly in the provinces bordering Pakistan. | C10: 2025 | M10: PBO | N10: =IF(M10=ITNs!$E$8, ITNs!E10, IF(M10=ITNs!$B$8, ITNs!B10, IF(M10=ITNs!$C$8, ITNs!C10, IF(M10=ITNs!$D$8, ITNs!D10, IF(M10=ITNs!$E$8, ITNs!E10, IF(M10=ITNs!$F$8, ITNs!F10, IF(M10=ITNs!$G$8, ITNs!G10, IF(M10=ITNs!$H$8, ITNs!H10, "ERROR")))))))) -> 2579711 | V10: Microplanning | AA10: Next campaign is planned in 2025, only around 300,000 BPO-nets provided with the support of WHO/WHE, will be distributed in some targeted districts that are not covered since more than 3 years, and this distribution is planned for Behsood district of Nangarhar and then Chaprahar district
A11: Afghanistan | B11: Spring Rainy Season: The first rainy season occurs during spring, typically from March to May. During this time, rainfall is more frequent in the northern and central regions of the country, including Kabul and the Hindu Kush mountain range. Summer Rainy Season: The second rainy season occurs during summer, usually from June to September. This period is characterized by the arrival of the southwest monsoon, which brings heavy rainfall to the southern and eastern parts of Afghanistan, particularly in the provinces bordering Pakistan. | C11: 2026 | M11: PBO | N11: =IF(M11=ITNs!$E$8, ITNs!E11, IF(M11=ITNs!$B$8, ITNs!B11, IF(M11=ITNs!$C$8, ITNs!C11, IF(M11=ITNs!$D$8, ITNs!D11, IF(M11=ITNs!$E$8, ITNs!E11, IF(M11=ITNs!$F$8, ITNs!F11, IF(M11=ITNs!$G$8, ITNs!G11, IF(M11=ITNs!$H$8, ITNs!H11, "ERROR")))))))) -> 211953
A12: Angola | B12: Short Rainy Season: The first rainy season, known as the short rainy season or "small rains," typically occurs from September to November. Long Rainy Season: The second rainy season usually takes place from December to April. | C12: 2024 | D12: No campaign this year | M12: Multi-products | N12: =IF(M12=ITNs!$E$8, ITNs!E12, IF(M12=ITNs!$B$8, ITNs!B12, IF(M12=ITNs!$C$8, ITNs!C12, IF(M12=ITNs!$D$8, ITNs!D12, IF(M12=ITNs!$E$8, ITNs!E12, IF(M12=ITNs!$F$8, ITNs!F12, IF(M12=ITNs!$G$8, ITNs!G12, IF(M12=ITNs!$H$8, ITNs!H12, "ERROR")))))))) -> 288643
A13: Angola | C13: 2025 | H13: 10 Provinces to be covered in 2024 | M13: Multi-products | N13: =IF(M13=ITNs!$E$8, ITNs!E13, IF(M13=ITNs!$B$8, ITNs!B13, IF(M13=ITNs!$C$8, ITNs!C13, IF(M13=ITNs!$D$8, ITNs!D13, IF(M13=ITNs!$E$8, ITNs!E13, IF(M13=ITNs!$F$8, ITNs!F13, IF(M13=ITNs!$G$8, ITNs!G13, IF(M13=ITNs!$H$8, ITNs!H13, "ERROR")))))))) -> 4515723 | Q13: PMI
A14: Angola | C14: 2026 | D14: No campaign this year | M14: Multi-products | N14: =IF(M14=ITNs!$E$8, ITNs!E14, IF(M14=ITNs!$B$8, ITNs!B14, IF(M14=ITNs!$C$8, ITNs!C14, IF(M14=ITNs!$D$8, ITNs!D14, IF(M14=ITNs!$E$8, ITNs!E14, IF(M14=ITNs!$F$8, ITNs!F14, IF(M14=ITNs!$G$8, ITNs!G14, IF(M14=ITNs!$H$8, ITNs!H14, "ERROR")))))))) -> 688360
A15: Bangladesh | B15: Pre-Monsoon Season: usually begins in April and continues through May with thunderstorms and occasional rainfall occur. Monsoon Season: The monsoon season generally starts in June and extends through September. | C15: 2024 | M15: Pyrethroid-only | N15: =IF(M15=ITNs!$E$8, ITNs!E15, IF(M15=ITNs!$B$8, ITNs!B15, IF(M15=ITNs!$C$8, ITNs!C15, IF(M15=ITNs!$D$8, ITNs!D15, IF(M15=ITNs!$E$8, ITNs!E15, IF(M15=ITNs!$F$8, ITNs!F15, IF(M15=ITNs!$G$8, ITNs!G15, IF(M15=ITNs!$H$8, ITNs!H15, "ERROR")))))))) -> 108155
A16: Bangladesh | C16: 2025 | M16: Pyrethroid-only | N16: =IF(M16=ITNs!$E$8, ITNs!E16, IF(M16=ITNs!$B$8, ITNs!B16, IF(M16=ITNs!$C$8, ITNs!C16, IF(M16=ITNs!$D$8, ITNs!D16, IF(M16=ITNs!$E$8, ITNs!E16, IF(M16=ITNs!$F$8, ITNs!F16, IF(M16=ITNs!$G$8, ITNs!G16, IF(M16=ITNs!$H$8, ITNs!H16, "ERROR")))))))) -> 84374
A17: Bangladesh | C17: 2026 | M17: Pyrethroid-only | N17: =IF(M17=ITNs!$E$8, ITNs!E17, IF(M17=ITNs!$B$8, ITNs!B17, IF(M17=ITNs!$C$8, ITNs!C17, IF(M17=ITNs!$D$8, ITNs!D17, IF(M17=ITNs!$E$8, ITNs!E17, IF(M17=ITNs!$F$8, ITNs!F17, IF(M17=ITNs!$G$8, ITNs!G17, IF(M17=ITNs!$H$8, ITNs!H17, "ERROR")))))))) -> 823614
A18: Benin - ROUTINE | B18: Rainy Season: Generally from April to October, with peak rainfall in July and August. | C18: 2024 | D18: No campaign this year | M18: Dual a.i. | N18: =IF(M18=ITNs!$E$8, ITNs!E18, IF(M18=ITNs!$B$8, ITNs!B18, IF(M18=ITNs!$C$8, ITNs!C18, IF(M18=ITNs!$D$8, ITNs!D18, IF(M18=ITNs!$E$8, ITNs!E18, IF(M18=ITNs!$F$8, ITNs!F18, IF(M18=ITNs!$G$8, ITNs!G18, IF(M18=ITNs!$H$8, ITNs!H18, "ERROR")))))))) -> 27223
A19: Benin | C19: 2025 | M19: Dual a.i. | N19: =IF(M19=ITNs!$E$8, ITNs!E19, IF(M19=ITNs!$B$8, ITNs!B19, IF(M19=ITNs!$C$8, ITNs!C19, IF(M19=ITNs!$D$8, ITNs!D19, IF(M19=ITNs!$E$8, ITNs!E19, IF(M19=ITNs!$F$8, ITNs!F19, IF(M19=ITNs!$G$8, ITNs!G19, IF(M19=ITNs!$H$8, ITNs!H19, "ERROR")))))))) -> 6787230
A20: Benin - ROUTINE | C20: 2026 | M20: Dual a.i. | N20: =IF(M20=ITNs!$E$8, ITNs!E20, IF(M20=ITNs!$B$8, ITNs!B20, IF(M20=ITNs!$C$8, ITNs!C20, IF(M20=ITNs!$D$8, ITNs!D20, IF(M20=ITNs!$E$8, ITNs!E20, IF(M20=ITNs!$F$8, ITNs!F20, IF(M20=ITNs!$G$8, ITNs!G20, IF(M20=ITNs!$H$8, ITNs!H20, "ERROR")))))))) -> 29167
A21: Bhutan | B21: Monsoon season, typically occurs from June to September. | C21: 2025 | M21: Pyrethroid-only | N21: =IF(M21=ITNs!$E$8, ITNs!E21, IF(M21=ITNs!$B$8, ITNs!B21, IF(M21=ITNs!$C$8, ITNs!C21, IF(M21=ITNs!$D$8, ITNs!D21, IF(M21=ITNs!$E$8, ITNs!E21, IF(M21=ITNs!$F$8, ITNs!F21, IF(M21=ITNs!$G$8, ITNs!G21, IF(M21=ITNs!$H$8, ITNs!H21, "ERROR")))))))) -> 124000
A22: Botswana | B22: Generally from November to March, with peak rainfall usually occurring from December to February. However, Botswana is mostly arid or semi-arid, and rainfall amounts are relatively low compared to other countries in the region. | C22: 2024 | D22: No campaign this year | N22: =IF(M22=ITNs!$E$8, ITNs!E22, IF(M22=ITNs!$B$8, ITNs!B22, IF(M22=ITNs!$C$8, ITNs!C22, IF(M22=ITNs!$D$8, ITNs!D22, IF(M22=ITNs!$E$8, ITNs!E22, IF(M22=ITNs!$F$8, ITNs!F22, IF(M22=ITNs!$G$8, ITNs!G22, IF(M22=ITNs!$H$8, ITNs!H22, "ERROR")))))))) -> 0
A23: Botswana | B23: Generally from November to March, with peak rainfall usually occurring from December to February. However, Botswana is mostly arid or semi-arid, and rainfall amounts are relatively low compared to other countries in the region. | C23: 2025 | N23: =IF(M23=ITNs!$E$8, ITNs!E23, IF(M23=ITNs!$B$8, ITNs!B23, IF(M23=ITNs!$C$8, ITNs!C23, IF(M23=ITNs!$D$8, ITNs!D23, IF(M23=ITNs!$E$8, ITNs!E23, IF(M23=ITNs!$F$8, ITNs!F23, IF(M23=ITNs!$G$8, ITNs!G23, IF(M23=ITNs!$H$8, ITNs!H23, "ERROR")))))))) -> 0
A24: Burkina Faso | B24: Rainy Season: Generally from May to October, with peak rainfall usually occurring between June and September. | C24: 2024 | D24: No campaign this year | I24: 2 remaining DS from 2022 campaign - one being done through routine / second one by campaign | M24: Dual a.i. | N24: =IF(M24=ITNs!$E$8, ITNs!E24, IF(M24=ITNs!$B$8, ITNs!B24, IF(M24=ITNs!$C$8, ITNs!C24, IF(M24=ITNs!$D$8, ITNs!D24, IF(M24=ITNs!$E$8, ITNs!E24, IF(M24=ITNs!$F$8, ITNs!F24, IF(M24=ITNs!$G$8, ITNs!G24, IF(M24=ITNs!$H$8, ITNs!H24, "ERROR")))))))) -> 18972664
A25: Burkina Faso | C25: 2025 | D25: National - one phase | M25: Dual a.i. | N25: =IF(M25=ITNs!$E$8, ITNs!E25, IF(M25=ITNs!$B$8, ITNs!B25, IF(M25=ITNs!$C$8, ITNs!C25, IF(M25=ITNs!$D$8, ITNs!D25, IF(M25=ITNs!$E$8, ITNs!E25, IF(M25=ITNs!$F$8, ITNs!F25, IF(M25=ITNs!$G$8, ITNs!G25, IF(M25=ITNs!$H$8, ITNs!H25, "ERROR")))))))) -> 1879488
A26: Burundi | B26: Long rainy season from March to May and the short rainy season from September to November. | C26: 2025 | D26: National - multi-phases | F26: Hybrid approach | I26: 47 DS | K26: 2025-04-01 | L26: =SUM(L27:L73) -> 12595686 | M26: Multi-products | N26: =IF(M26=ITNs!$E$8, ITNs!E26, IF(M26=ITNs!$B$8, ITNs!B26, IF(M26=ITNs!$C$8, ITNs!C26, IF(M26=ITNs!$D$8, ITNs!D26, IF(M26=ITNs!$E$8, ITNs!E26, IF(M26=ITNs!$F$8, ITNs!F26, IF(M26=ITNs!$G$8, ITNs!G26, IF(M26=ITNs!$H$8, ITNs!H26, "ERROR")))))))) -> 7976121 | P26: Pilot distribution in April / remaining provinces after Presidential elections- door to doo HHR and fixed sites distrib | S26: Macroplanning | T26: Pending ITN arrival | U26: On track | V26: Microplaning (Bujumbura mairie and Gitega), Log SP, HHR, ITN distrib | AA26: 42 DS sur les 49 DS ciblés / remaining DS targeted by CD
A27: Burundi | C27: 2025 | D27: National - multi-phases | G27: No prioritization | H27: BUBANZA | I27: Bubanza | J27: No integration | K27: 2024-06-24 | L27: 280227 | M27: Dual a.i. | N27: =IF(M27=ITNs!$E$8, ITNs!E27, IF(M27=ITNs!$B$8, ITNs!B27, IF(M27=ITNs!$C$8, ITNs!C27, IF(M27=ITNs!$D$8, ITNs!D27, IF(M27=ITNs!$E$8, ITNs!E27, IF(M27=ITNs!$F$8, ITNs!F27, IF(M27=ITNs!$G$8, ITNs!G27, IF(M27=ITNs!$H$8, ITNs!H27, "ERROR")))))))) -> 180679 | Q27: Global Fund | R27: Global Fund | S27: Macroplanning | T27: Pending ITN arrival | U27: On track | V27: Training, Household Registration, Logistics and supply-chain, Distribution, Monitoring, Payment | W27: National | X27: DIGIT-HCM (eGov) | Y27: Individual Packaging | Z27: Incineration
A28: Burundi | C28: 2025 | D28: National - multi-phases | G28: No prioritization | H28: BUBANZA | I28: Mpanda | J28: No integration | K28: 2024-07-24 | L28: 290790 | M28: Dual a.i. | N28: =IF(M28=ITNs!$E$8, ITNs!E28, IF(M28=ITNs!$B$8, ITNs!B28, IF(M28=ITNs!$C$8, ITNs!C28, IF(M28=ITNs!$D$8, ITNs!D28, IF(M28=ITNs!$E$8, ITNs!E28, IF(M28=ITNs!$F$8, ITNs!F28, IF(M28=ITNs!$G$8, ITNs!G28, IF(M28=ITNs!$H$8, ITNs!H28, "ERROR")))))))) -> 177705 | Q28: Global Fund | R28: Global Fund | S28: Macroplanning | T28: Pending ITN arrival | U28: On track | V28: Training, Household Registration, Logistics and supply-chain, Distribution, Monitoring, Payment | W28: National | X28: DIGIT-HCM (eGov) | Y28: Individual Packaging | Z28: Incineration
A29: Burundi | C29: 2025 | D29: National - multi-phases | G29: No prioritization | H29: BUJUMBURA MAIRIE | I29: Zone centre | J29: No integration | K29: 2024-06-24 | L29: 212946 | M29: Pyrethroid-only | N29: =IF(M29=ITNs!$E$8, ITNs!E29, IF(M29=ITNs!$B$8, ITNs!B29, IF(M29=ITNs!$C$8, ITNs!C29, IF(M29=ITNs!$D$8, ITNs!D29, IF(M29=ITNs!$E$8, ITNs!E29, IF(M29=ITNs!$F$8, ITNs!F29, IF(M29=ITNs!$G$8, ITNs!G29, IF(M29=ITNs!$H$8, ITNs!H29, "ERROR")))))))) -> 164580 | Q29: Global Fund | R29: Global Fund | S29: Macroplanning | T29: Pending ITN arrival | U29: On track | V29: Training, Household Registration, Logistics and supply-chain, Distribution, Monitoring, Payment | W29: National | X29: DIGIT-HCM (eGov) | Y29: Bale Packaging | Z29: Incineration
A30: Burundi | C30: 2025 | D30: National - multi-phases | G30: No prioritization | H30: BUJUMBURA MAIRIE | I30: Zone nord | J30: No integration | K30: 2024-06-24 | L30: 417550 | M30: Pyrethroid-only | N30: =IF(M30=ITNs!$E$8, ITNs!E30, IF(M30=ITNs!$B$8, ITNs!B30, IF(M30=ITNs!$C$8, ITNs!C30, IF(M30=ITNs!$D$8, ITNs!D30, IF(M30=ITNs!$E$8, ITNs!E30, IF(M30=ITNs!$F$8, ITNs!F30, IF(M30=ITNs!$G$8, ITNs!G30, IF(M30=ITNs!$H$8, ITNs!H30, "ERROR")))))))) -> 255169 | Q30: Global Fund | R30: Global Fund | S30: Macroplanning | T30: Pending ITN arrival | U30: On track | V30: Training, Household Registration, Logistics and supply-chain, Distribution, Monitoring, Payment | W30: National | X30: DIGIT-HCM (eGov) | Y30: Bale Packaging | Z30: Incineration
A31: Burundi | C31: 2025 | D31: National - multi-phases | G31: No prioritization | H31: BUJUMBURA MAIRIE | I31: Zone sud | J31: No integration | K31: 2024-06-24 | L31: 209358 | M31: Pyrethroid-only | N31: =IF(M31=ITNs!$E$8, ITNs!E31, IF(M31=ITNs!$B$8, ITNs!B31, IF(M31=ITNs!$C$8, ITNs!C31, IF(M31=ITNs!$D$8, ITNs!D31, IF(M31=ITNs!$E$8, ITNs!E31, IF(M31=ITNs!$F$8, ITNs!F31, IF(M31=ITNs!$G$8, ITNs!G31, IF(M31=ITNs!$H$8, ITNs!H31, "ERROR")))))))) -> 127941 | Q31: Global Fund | R31: Global Fund | S31: Macroplanning | T31: Pending ITN arrival | U31: On track | V31: Training, Household Registration, Logistics and supply-chain, Distribution, Monitoring, Payment | W31: National | X31: DIGIT-HCM (eGov) | Y31: Bale Packaging | Z31: Incineration
A32: Burundi | C32: 2025 | D32: National - multi-phases | G32: No prioritization | H32: BUJUMBURA RURAL | I32: Isare | J32: No integration | K32: 2024-06-24 | L32: 320886 | M32: Pyrethroid-only | N32: =IF(M32=ITNs!$E$8, ITNs!E32, IF(M32=ITNs!$B$8, ITNs!B32, IF(M32=ITNs!$C$8, ITNs!C32, IF(M32=ITNs!$D$8, ITNs!D32, IF(M32=ITNs!$E$8, ITNs!E32, IF(M32=ITNs!$F$8, ITNs!F32, IF(M32=ITNs!$G$8, ITNs!G32, IF(M32=ITNs!$H$8, ITNs!H32, "ERROR")))))))) -> 200765 | Q32: Global Fund | R32: Global Fund | S32: Macroplanning | T32: Pending ITN arrival | U32: On track | V32: Training, Household Registration, Logistics and supply-chain, Distribution, Monitoring, Payment | W32: National | X32: DIGIT-HCM (eGov) | Y32: Bale Packaging | Z32: Incineration
A33: Burundi | C33: 2025 | D33: National - multi-phases | G33: No prioritization | H33: BUJUMBURA RURAL | I33: Kabezi | J33: No integration | K33: 2024-06-24 | L33: 289990 | M33: Pyrethroid-only | N33: =IF(M33=ITNs!$E$8, ITNs!E33, IF(M33=ITNs!$B$8, ITNs!B33, IF(M33=ITNs!$C$8, ITNs!C33, IF(M33=ITNs!$D$8, ITNs!D33, IF(M33=ITNs!$E$8, ITNs!E33, IF(M33=ITNs!$F$8, ITNs!F33, IF(M33=ITNs!$G$8, ITNs!G33, IF(M33=ITNs!$H$8, ITNs!H33, "ERROR")))))))) -> 177216 | Q33: Global Fund | R33: Global Fund | S33: Macroplanning | T33: Pending ITN arrival | U33: On track | V33: Training, Household Registration, Logistics and supply-chain, Distribution, Monitoring, Payment | W33: National | X33: DIGIT-HCM (eGov) | Y33: Bale Packaging | Z33: Incineration
A34: Burundi | C34: 2025 | D34: National - multi-phases | G34: No prioritization | H34: BUJUMBURA RURAL | I34: Rwibaga | J34: No integration | K34: 2024-06-24 | L34: 174333 | M34: Pyrethroid-only | N34: =IF(M34=ITNs!$E$8, ITNs!E34, IF(M34=ITNs!$B$8, ITNs!B34, IF(M34=ITNs!$C$8, ITNs!C34, IF(M34=ITNs!$D$8, ITNs!D34, IF(M34=ITNs!$E$8, ITNs!E34, IF(M34=ITNs!$F$8, ITNs!F34, IF(M34=ITNs!$G$8, ITNs!G34, IF(M34=ITNs!$H$8, ITNs!H34, "ERROR")))))))) -> 106537 | Q34: Global Fund | R34: Global Fund | S34: Macroplanning | T34: Pending ITN arrival | U34: On track | V34: Training, Household Registration, Logistics and supply-chain, Distribution, Monitoring, Payment | W34: National | X34: DIGIT-HCM (eGov) | Y34: Bale Packaging | Z34: Incineration
A35: Burundi | C35: 2025 | D35: National - multi-phases | G35: No prioritization | H35: BURURI | I35: Bururi | J35: No integration | K35: 2024-06-24 | L35: 191394 | M35: Pyrethroid-only | N35: =IF(M35=ITNs!$E$8, ITNs!E35, IF(M35=ITNs!$B$8, ITNs!B35, IF(M35=ITNs!$C$8, ITNs!C35, IF(M35=ITNs!$D$8, ITNs!D35, IF(M35=ITNs!$E$8, ITNs!E35, IF(M35=ITNs!$F$8, ITNs!F35, IF(M35=ITNs!$G$8, ITNs!G35, IF(M35=ITNs!$H$8, ITNs!H35, "ERROR")))))))) -> 120839 | Q35: Global Fund | R35: Global Fund | S35: Macroplanning | T35: Pending ITN arrival | U35: On track | V35: Training, Household Registration, Logistics and supply-chain, Distribution, Monitoring, Payment | W35: National | X35: DIGIT-HCM (eGov) | Y35: Bale Packaging | Z35: Incineration
A36: Burundi | C36: 2025 | D36: National - multi-phases | G36: No prioritization | H36: BURURI | I36: Matana | J36: No integration | K36: 2024-06-24 | L36: 172072 | M36: Pyrethroid-only | N36: =IF(M36=ITNs!$E$8, ITNs!E36, IF(M36=ITNs!$B$8, ITNs!B36, IF(M36=ITNs!$C$8, ITNs!C36, IF(M36=ITNs!$D$8, ITNs!D36, IF(M36=ITNs!$E$8, ITNs!E36, IF(M36=ITNs!$F$8, ITNs!F36, IF(M36=ITNs!$G$8, ITNs!G36, IF(M36=ITNs!$H$8, ITNs!H36, "ERROR")))))))) -> 105155 | Q36: Global Fund | R36: Global Fund | S36: Macroplanning | T36: Pending ITN arrival | U36: On track | V36: Training, Household Registration, Logistics and supply-chain, Distribution, Monitoring, Payment | W36: National | X36: DIGIT-HCM (eGov) | Y36: Bale Packaging | Z36: Incineration
A37: Burundi | C37: 2025 | D37: National - multi-phases | G37: No prioritization | H37: BURURI | I37: Rutovu | J37: No integration | K37: 2024-06-24 | L37: 165452 | M37: Pyrethroid-only | N37: =IF(M37=ITNs!$E$8, ITNs!E37, IF(M37=ITNs!$B$8, ITNs!B37, IF(M37=ITNs!$C$8, ITNs!C37, IF(M37=ITNs!$D$8, ITNs!D37, IF(M37=ITNs!$E$8, ITNs!E37, IF(M37=ITNs!$F$8, ITNs!F37, IF(M37=ITNs!$G$8, ITNs!G37, IF(M37=ITNs!$H$8, ITNs!H37, "ERROR")))))))) -> 101110 | Q37: Global Fund | R37: Global Fund | S37: Macroplanning | T37: Pending ITN arrival | U37: On track | V37: Training, Household Registration, Logistics and supply-chain, Distribution, Monitoring, Payment | W37: National | X37: DIGIT-HCM (eGov) | Y37: Bale Packaging | Z37: Incineration
A38: Burundi | C38: 2025 | D38: National - multi-phases | G38: No prioritization | H38: CANKUZO | I38: Cankuzo | J38: No integration | K38: 2024-06-24 | L38: 204746 | M38: Dual a.i. | N38: =IF(M38=ITNs!$E$8, ITNs!E38, IF(M38=ITNs!$B$8, ITNs!B38, IF(M38=ITNs!$C$8, ITNs!C38, IF(M38=ITNs!$D$8, ITNs!D38, IF(M38=ITNs!$E$8, ITNs!E38, IF(M38=ITNs!$F$8, ITNs!F38, IF(M38=ITNs!$G$8, ITNs!G38, IF(M38=ITNs!$H$8, ITNs!H38, "ERROR")))))))) -> 157752 | Q38: Global Fund | R38: Global Fund | S38: Macroplanning | T38: Pending ITN arrival | U38: On track | V38: Training, Household Registration, Logistics and supply-chain, Distribution, Monitoring, Payment | W38: National | X38: DIGIT-HCM (eGov) | Y38: Individual Packaging | Z38: Incineration
A39: Burundi | C39: 2025 | D39: National - multi-phases | G39: No prioritization | H39: CANKUZO | I39: Murore | J39: No integration | K39: 2024-06-24 | L39: 181’885 | M39: Dual a.i. | N39: =IF(M39=ITNs!$E$8, ITNs!E39, IF(M39=ITNs!$B$8, ITNs!B39, IF(M39=ITNs!$C$8, ITNs!C39, IF(M39=ITNs!$D$8, ITNs!D39, IF(M39=ITNs!$E$8, ITNs!E39, IF(M39=ITNs!$F$8, ITNs!F39, IF(M39=ITNs!$G$8, ITNs!G39, IF(M39=ITNs!$H$8, ITNs!H39, "ERROR")))))))) -> 111152 | Q39: Global Fund | R39: Global Fund | S39: Macroplanning | T39: Pending ITN arrival | U39: On track | V39: Training, Household Registration, Logistics and supply-chain, Distribution, Monitoring, Payment | W39: National | X39: DIGIT-HCM (eGov) | Y39: Individual Packaging | Z39: Incineration
A40: Burundi | C40: 2025 | D40: National - multi-phases | G40: No prioritization | H40: CIBITOKE | I40: Bukinanyana | J40: No integration | K40: 2024-06-24 | L40: 266881 | M40: Dual a.i. | N40: =IF(M40=ITNs!$E$8, ITNs!E40, IF(M40=ITNs!$B$8, ITNs!B40, IF(M40=ITNs!$C$8, ITNs!C40, IF(M40=ITNs!$D$8, ITNs!D40, IF(M40=ITNs!$E$8, ITNs!E40, IF(M40=ITNs!$F$8, ITNs!F40, IF(M40=ITNs!$G$8, ITNs!G40, IF(M40=ITNs!$H$8, ITNs!H40, "ERROR")))))))) -> 163094 | Q40: Global Fund | R40: Global Fund | S40: Macroplanning | T40: Pending ITN arrival | U40: On track | V40: Training, Household Registration, Logistics and supply-chain, Distribution, Monitoring, Payment | W40: National | X40: DIGIT-HCM (eGov) | Y40: Individual Packaging | Z40: Incineration
A41: Burundi | C41: 2025 | D41: National - multi-phases | G41: No prioritization | H41: CIBITOKE | I41: Cibitoke | J41: No integration | K41: 2024-06-24 | L41: 260348 | M41: Dual a.i. | N41: =IF(M41=ITNs!$E$8, ITNs!E41, IF(M41=ITNs!$B$8, ITNs!B41, IF(M41=ITNs!$C$8, ITNs!C41, IF(M41=ITNs!$D$8, ITNs!D41, IF(M41=ITNs!$E$8, ITNs!E41, IF(M41=ITNs!$F$8, ITNs!F41, IF(M41=ITNs!$G$8, ITNs!G41, IF(M41=ITNs!$H$8, ITNs!H41, "ERROR")))))))) -> 159102 | Q41: Global Fund | R41: Global Fund | S41: Macroplanning | T41: Pending ITN arrival | U41: On track | V41: Training, Household Registration, Logistics and supply-chain, Distribution, Monitoring, Payment | W41: National | X41: DIGIT-HCM (eGov) | Y41: Individual Packaging | Z41: Incineration
A42: Burundi | C42: 2025 | D42: National - multi-phases | G42: No prioritization | H42: CIBITOKE | I42: Mabayi | J42: No integration | K42: 2024-06-24 | L42: 261532 | M42: Dual a.i. | N42: =IF(M42=ITNs!$E$8, ITNs!E42, IF(M42=ITNs!$B$8, ITNs!B42, IF(M42=ITNs!$C$8, ITNs!C42, IF(M42=ITNs!$D$8, ITNs!D42, IF(M42=ITNs!$E$8, ITNs!E42, IF(M42=ITNs!$F$8, ITNs!F42, IF(M42=ITNs!$G$8, ITNs!G42, IF(M42=ITNs!$H$8, ITNs!H42, "ERROR")))))))) -> 159825 | Q42: Global Fund | R42: Global Fund | S42: Macroplanning | T42: Pending ITN arrival | U42: On track | V42: Training, Household Registration, Logistics and supply-chain, Distribution, Monitoring, Payment | W42: National | X42: DIGIT-HCM (eGov) | Y42: Individual Packaging | Z42: Incineration
A43: Burundi | C43: 2025 | D43: National - multi-phases | G43: No prioritization | H43: GITEGA | I43: Gitega | J43: No integration | K43: 2024-06-24 | L43: 385193 | M43: Dual a.i. | N43: =IF(M43=ITNs!$E$8, ITNs!E43, IF(M43=ITNs!$B$8, ITNs!B43, IF(M43=ITNs!$C$8, ITNs!C43, IF(M43=ITNs!$D$8, ITNs!D43, IF(M43=ITNs!$E$8, ITNs!E43, IF(M43=ITNs!$F$8, ITNs!F43, IF(M43=ITNs!$G$8, ITNs!G43, IF(M43=ITNs!$H$8, ITNs!H43, "ERROR")))))))) -> 244531 | Q43: Global Fund | R43: Global Fund | S43: Macroplanning | T43: Pending ITN arrival | U43: On track | V43: Training, Household Registration, Logistics and supply-chain, Distribution, Monitoring, Payment | W43: National | X43: DIGIT-HCM (eGov) | Y43: Individual Packaging | Z43: Incineration
A44: Burundi | C44: 2025 | D44: National - multi-phases | G44: No prioritization | H44: GITEGA | I44: Kibuye | J44: No integration | K44: 2024-06-24 | L44: 322305 | M44: Dual a.i. | N44: =IF(M44=ITNs!$E$8, ITNs!E44, IF(M44=ITNs!$B$8, ITNs!B44, IF(M44=ITNs!$C$8, ITNs!C44, IF(M44=ITNs!$D$8, ITNs!D44, IF(M44=ITNs!$E$8, ITNs!E44, IF(M44=ITNs!$F$8, ITNs!F44, IF(M44=ITNs!$G$8, ITNs!G44, IF(M44=ITNs!$H$8, ITNs!H44, "ERROR")))))))) -> 196964 | Q44: Global Fund | R44: Global Fund | S44: Macroplanning | T44: Pending ITN arrival | U44: On track | V44: Training, Household Registration, Logistics and supply-chain, Distribution, Monitoring, Payment | W44: National | X44: DIGIT-HCM (eGov) | Y44: Individual Packaging | Z44: Incineration
A45: Burundi | C45: 2025 | D45: National - multi-phases | G45: No prioritization | H45: GITEGA | I45: Mutaho | J45: No integration | K45: 2024-06-24 | L45: 293497 | M45: Dual a.i. | N45: =IF(M45=ITNs!$E$8, ITNs!E45, IF(M45=ITNs!$B$8, ITNs!B45, IF(M45=ITNs!$C$8, ITNs!C45, IF(M45=ITNs!$D$8, ITNs!D45, IF(M45=ITNs!$E$8, ITNs!E45, IF(M45=ITNs!$F$8, ITNs!F45, IF(M45=ITNs!$G$8, ITNs!G45, IF(M45=ITNs!$H$8, ITNs!H45, "ERROR")))))))) -> 179359 | Q45: Global Fund | R45: Global Fund | S45: Macroplanning | T45: Pending ITN arrival | U45: On track | V45: Training, Household Registration, Logistics and supply-chain, Distribution, Monitoring, Payment | W45: National | X45: DIGIT-HCM (eGov) | Y45: Individual Packaging | Z45: Incineration
A46: Burundi | C46: 2025 | D46: National - multi-phases | G46: No prioritization | H46: GITEGA | I46: Ryansoro | J46: No integration | K46: 2024-06-24 | L46: 224110 | M46: Pyrethroid-only | N46: =IF(M46=ITNs!$E$8, ITNs!E46, IF(M46=ITNs!$B$8, ITNs!B46, IF(M46=ITNs!$C$8, ITNs!C46, IF(M46=ITNs!$D$8, ITNs!D46, IF(M46=ITNs!$E$8, ITNs!E46, IF(M46=ITNs!$F$8, ITNs!F46, IF(M46=ITNs!$G$8, ITNs!G46, IF(M46=ITNs!$H$8, ITNs!H46, "ERROR")))))))) -> 136956 | Q46: Global Fund | R46: Global Fund | S46: Macroplanning | T46: Pending ITN arrival | U46: On track | V46: Training, Household Registration, Logistics and supply-chain, Distribution, Monitoring, Payment | W46: National | X46: DIGIT-HCM (eGov) | Y46: Bale Packaging | Z46: Incineration
A47: Burundi | C47: 2025 | D47: National - multi-phases | G47: No prioritization | H47: KAYANZA | I47: Gahombo | J47: No integration | K47: 2024-06-24 | L47: 284179 | M47: Dual a.i. | N47: =IF(M47=ITNs!$E$8, ITNs!E47, IF(M47=ITNs!$B$8, ITNs!B47, IF(M47=ITNs!$C$8, ITNs!C47, IF(M47=ITNs!$D$8, ITNs!D47, IF(M47=ITNs!$E$8, ITNs!E47, IF(M47=ITNs!$F$8, ITNs!F47, IF(M47=ITNs!$G$8, ITNs!G47, IF(M47=ITNs!$H$8, ITNs!H47, "ERROR")))))))) -> 177655 | Q47: Global Fund | R47: Global Fund | S47: Macroplanning | T47: Pending ITN arrival | U47: On track | V47: Training, Household Registration, Logistics and supply-chain, Distribution, Monitoring, Payment | W47: National | X47: DIGIT-HCM (eGov) | Y47: Individual Packaging | Z47: Incineration
A48: Burundi | C48: 2025 | D48: National - multi-phases | G48: No prioritization | H48: KAYANZA | I48: Kayanza | J48: No integration | K48: 2024-06-24 | L48: 367322 | M48: Dual a.i. | N48: =IF(M48=ITNs!$E$8, ITNs!E48, IF(M48=ITNs!$B$8, ITNs!B48, IF(M48=ITNs!$C$8, ITNs!C48, IF(M48=ITNs!$D$8, ITNs!D48, IF(M48=ITNs!$E$8, ITNs!E48, IF(M48=ITNs!$F$8, ITNs!F48, IF(M48=ITNs!$G$8, ITNs!G48, IF(M48=ITNs!$H$8, ITNs!H48, "ERROR")))))))) -> 224475 | Q48: Global Fund | R48: Global Fund | S48: Macroplanning | T48: Pending ITN arrival | U48: On track | V48: Training, Household Registration, Logistics and supply-chain, Distribution, Monitoring, Payment | W48: National | X48: DIGIT-HCM (eGov) | Y48: Individual Packaging | Z48: Incineration
A49: Burundi | C49: 2025 | D49: National - multi-phases | G49: No prioritization | H49: KAYANZA | I49: Musema | J49: No integration | K49: 2024-06-24 | L49: 337424 | M49: Dual a.i. | N49: =IF(M49=ITNs!$E$8, ITNs!E49, IF(M49=ITNs!$B$8, ITNs!B49, IF(M49=ITNs!$C$8, ITNs!C49, IF(M49=ITNs!$D$8, ITNs!D49, IF(M49=ITNs!$E$8, ITNs!E49, IF(M49=ITNs!$F$8, ITNs!F49, IF(M49=ITNs!$G$8, ITNs!G49, IF(M49=ITNs!$H$8, ITNs!H49, "ERROR")))))))) -> 206204 | Q49: Global Fund | R49: Global Fund | S49: Macroplanning | T49: Pending ITN arrival | U49: On track | V49: Training, Household Registration, Logistics and supply-chain, Distribution, Monitoring, Payment | W49: National | X49: DIGIT-HCM (eGov) | Y49: Individual Packaging | Z49: Incineration
A50: Burundi | C50: 2025 | D50: National - multi-phases | G50: No prioritization | H50: KARUSI | I50: Buhiga | J50: No integration | K50: 2024-06-24 | L50: 391124 | M50: Dual a.i. | N50: =IF(M50=ITNs!$E$8, ITNs!E50, IF(M50=ITNs!$B$8, ITNs!B50, IF(M50=ITNs!$C$8, ITNs!C50, IF(M50=ITNs!$D$8, ITNs!D50, IF(M50=ITNs!$E$8, ITNs!E50, IF(M50=ITNs!$F$8, ITNs!F50, IF(M50=ITNs!$G$8, ITNs!G50, IF(M50=ITNs!$H$8, ITNs!H50, "ERROR")))))))) -> 239020 | Q50: Global Fund | R50: Global Fund | S50: Macroplanning | T50: Pending ITN arrival | U50: On track | V50: Training, Household Registration, Logistics and supply-chain, Distribution, Monitoring, Payment | W50: National | X50: DIGIT-HCM (eGov) | Y50: Individual Packaging | Z50: Incineration
A51: Burundi | C51: 2025 | D51: National - multi-phases | G51: No prioritization | H51: KARUSI | I51: Nyabikere | J51: No integration | K51: 2024-06-24 | L51: 346153 | M51: Dual a.i. | N51: =IF(M51=ITNs!$E$8, ITNs!E51, IF(M51=ITNs!$B$8, ITNs!B51, IF(M51=ITNs!$C$8, ITNs!C51, IF(M51=ITNs!$D$8, ITNs!D51, IF(M51=ITNs!$E$8, ITNs!E51, IF(M51=ITNs!$F$8, ITNs!F51, IF(M51=ITNs!$G$8, ITNs!G51, IF(M51=ITNs!$H$8, ITNs!H51, "ERROR")))))))) -> 211538 | P51: pilot distribution | Q51: Global Fund | R51: Global Fund | S51: Macroplanning | T51: Pending ITN arrival | U51: On track | V51: Training, Household Registration, Logistics and supply-chain, Distribution, Monitoring, Payment | W51: National | X51: DIGIT-HCM (eGov) | Y51: Individual Packaging | Z51: Incineration
A52: Burundi | C52: 2025 | D52: National - multi-phases | G52: No prioritization | H52: KIRUNDO | I52: Busoni | J52: No integration | K52: 2024-02-24 | L52: 245662 | M52: Dual a.i. | N52: =IF(M52=ITNs!$E$8, ITNs!E52, IF(M52=ITNs!$B$8, ITNs!B52, IF(M52=ITNs!$C$8, ITNs!C52, IF(M52=ITNs!$D$8, ITNs!D52, IF(M52=ITNs!$E$8, ITNs!E52, IF(M52=ITNs!$F$8, ITNs!F52, IF(M52=ITNs!$G$8, ITNs!G52, IF(M52=ITNs!$H$8, ITNs!H52, "ERROR")))))))) -> 152757 | P52: pilot distribution | Q52: Global Fund | R52: Global Fund | S52: Macroplanning | T52: Pending ITN arrival | U52: On track | V52: Training, Household Registration, Logistics and supply-chain, Distribution, Monitoring, Payment | W52: National | X52: DIGIT-HCM (eGov) | Y52: Individual Packaging | Z52: Incineration
A53: Burundi | C53: 2025 | D53: National - multi-phases | G53: No prioritization | H53: KIRUNDO | I53: Kirundo | J53: No integration | K53: 2024-02-24 | L53: 308073 | M53: Dual a.i. | N53: =IF(M53=ITNs!$E$8, ITNs!E53, IF(M53=ITNs!$B$8, ITNs!B53, IF(M53=ITNs!$C$8, ITNs!C53, IF(M53=ITNs!$D$8, ITNs!D53, IF(M53=ITNs!$E$8, ITNs!E53, IF(M53=ITNs!$F$8, ITNs!F53, IF(M53=ITNs!$G$8, ITNs!G53, IF(M53=ITNs!$H$8, ITNs!H53, "ERROR")))))))) -> 188267 | P53: pilot distribution | Q53: Global Fund | R53: Global Fund | S53: Macroplanning | T53: Pending ITN arrival | U53: On track | V53: Training, Household Registration, Logistics and supply-chain, Distribution, Monitoring, Payment | W53: National | X53: DIGIT-HCM (eGov) | Y53: Individual Packaging | Z53: Incineration
A54: Burundi | C54: 2025 | D54: National - multi-phases | G54: No prioritization | H54: KIRUNDO | I54: Mukenke | J54: No integration | K54: 2024-02-24 | L54: 209711 | M54: Dual a.i. | N54: =IF(M54=ITNs!$E$8, ITNs!E54, IF(M54=ITNs!$B$8, ITNs!B54, IF(M54=ITNs!$C$8, ITNs!C54, IF(M54=ITNs!$D$8, ITNs!D54, IF(M54=ITNs!$E$8, ITNs!E54, IF(M54=ITNs!$F$8, ITNs!F54, IF(M54=ITNs!$G$8, ITNs!G54, IF(M54=ITNs!$H$8, ITNs!H54, "ERROR")))))))) -> 128157 | P54: pilot distribution | Q54: Global Fund | R54: Global Fund | S54: Macroplanning | T54: Pending ITN arrival | U54: On track | V54: Training, Household Registration, Logistics and supply-chain, Distribution, Monitoring, Payment | W54: National | X54: DIGIT-HCM (eGov) | Y54: Individual Packaging | Z54: Incineration
A55: Burundi | C55: 2025 | D55: National - multi-phases | G55: No prioritization | H55: KIRUNDO | I55: Vumbi | J55: No integration | K55: 2024-02-24 | L55: 297856 | M55: Dual a.i. | N55: =IF(M55=ITNs!$E$8, ITNs!E55, IF(M55=ITNs!$B$8, ITNs!B55, IF(M55=ITNs!$C$8, ITNs!C55, IF(M55=ITNs!$D$8, ITNs!D55, IF(M55=ITNs!$E$8, ITNs!E55, IF(M55=ITNs!$F$8, ITNs!F55, IF(M55=ITNs!$G$8, ITNs!G55, IF(M55=ITNs!$H$8, ITNs!H55, "ERROR")))))))) -> 182023 | P55: pilot distribution | Q55: Global Fund | R55: Global Fund | S55: Macroplanning | T55: Pending ITN arrival | U55: On track | V55: Training, Household Registration, Logistics and supply-chain, Distribution, Monitoring, Payment | W55: National | X55: DIGIT-HCM (eGov) | Y55: Individual Packaging | Z55: Incineration
A56: Burundi | C56: 2025 | D56: National - multi-phases | G56: No prioritization | H56: MAKAMBA | I56: Makamba | J56: No integration | K56: 2024-06-24 | L56: 383616 | M56: Dual a.i. | N56: =IF(M56=ITNs!$E$8, ITNs!E56, IF(M56=ITNs!$B$8, ITNs!B56, IF(M56=ITNs!$C$8, ITNs!C56, IF(M56=ITNs!$D$8, ITNs!D56, IF(M56=ITNs!$E$8, ITNs!E56, IF(M56=ITNs!$F$8, ITNs!F56, IF(M56=ITNs!$G$8, ITNs!G56, IF(M56=ITNs!$H$8, ITNs!H56, "ERROR")))))))) -> 240205 | P56: pilot distribution | Q56: Global Fund | R56: Global Fund | S56: Macroplanning | T56: Pending ITN arrival | U56: On track | V56: Training, Household Registration, Logistics and supply-chain, Distribution, Monitoring, Payment | W56: National | X56: DIGIT-HCM (eGov) | Y56: Individual Packaging | Z56: Incineration
A57: Burundi | C57: 2025 | D57: National - multi-phases | G57: No prioritization | H57: MAKAMBA | I57: Nyanza-lac | J57: No integration | K57: 2024-06-24 | L57: 344294 | M57: Dual a.i. | N57: =IF(M57=ITNs!$E$8, ITNs!E57, IF(M57=ITNs!$B$8, ITNs!B57, IF(M57=ITNs!$C$8, ITNs!C57, IF(M57=ITNs!$D$8, ITNs!D57, IF(M57=ITNs!$E$8, ITNs!E57, IF(M57=ITNs!$F$8, ITNs!F57, IF(M57=ITNs!$G$8, ITNs!G57, IF(M57=ITNs!$H$8, ITNs!H57, "ERROR")))))))) -> 210402 | P57: pilot distribution | Q57: Global Fund | R57: Global Fund | S57: Macroplanning | T57: Pending ITN arrival | U57: On track | V57: Training, Household Registration, Logistics and supply-chain, Distribution, Monitoring, Payment | W57: National | X57: DIGIT-HCM (eGov) | Y57: Individual Packaging | Z57: Incineration
A58: Burundi | C58: 2025 | D58: National - multi-phases | G58: No prioritization | H58: MURAMVYA | I58: Kiganda | J58: No integration | K58: 2024-06-24 | L58: 245355 | M58: Pyrethroid-only | N58: =IF(M58=ITNs!$E$8, ITNs!E58, IF(M58=ITNs!$B$8, ITNs!B58, IF(M58=ITNs!$C$8, ITNs!C58, IF(M58=ITNs!$D$8, ITNs!D58, IF(M58=ITNs!$E$8, ITNs!E58, IF(M58=ITNs!$F$8, ITNs!F58, IF(M58=ITNs!$G$8, ITNs!G58, IF(M58=ITNs!$H$8, ITNs!H58, "ERROR")))))))) -> 155166 | Q58: Global Fund | R58: Global Fund | S58: Macroplanning | T58: Pending ITN arrival | U58: On track | V58: Training, Household Registration, Logistics and supply-chain, Distribution, Monitoring, Payment | W58: National | X58: DIGIT-HCM (eGov) | Y58: Bale Packaging | Z58: Incineration
A59: Burundi | C59: 2025 | D59: National - multi-phases | G59: No prioritization | H59: MURAMVYA | I59: Muramvya | J59: No integration | K59: 2024-06-24 | L59: 248911 | M59: Pyrethroid-only | N59: =IF(M59=ITNs!$E$8, ITNs!E59, IF(M59=ITNs!$B$8, ITNs!B59, IF(M59=ITNs!$C$8, ITNs!C59, IF(M59=ITNs!$D$8, ITNs!D59, IF(M59=ITNs!$E$8, ITNs!E59, IF(M59=ITNs!$F$8, ITNs!F59, IF(M59=ITNs!$G$8, ITNs!G59, IF(M59=ITNs!$H$8, ITNs!H59, "ERROR")))))))) -> 152112 | Q59: Global Fund | R59: Global Fund | S59: Macroplanning | T59: Pending ITN arrival | U59: On track | V59: Training, Household Registration, Logistics and supply-chain, Distribution, Monitoring, Payment | W59: National | X59: DIGIT-HCM (eGov) | Y59: Bale Packaging | Z59: Incineration
A60: Burundi | C60: 2025 | D60: National - multi-phases | G60: No prioritization | H60: MUYINGA | I60: Gashoho | J60: No integration | K60: 2024-06-24 | L60: 250191 | M60: Pyrethroid-only | N60: =IF(M60=ITNs!$E$8, ITNs!E60, IF(M60=ITNs!$B$8, ITNs!B60, IF(M60=ITNs!$C$8, ITNs!C60, IF(M60=ITNs!$D$8, ITNs!D60, IF(M60=ITNs!$E$8, ITNs!E60, IF(M60=ITNs!$F$8, ITNs!F60, IF(M60=ITNs!$G$8, ITNs!G60, IF(M60=ITNs!$H$8, ITNs!H60, "ERROR")))))))) -> 152895 | Q60: Global Fund | R60: Global Fund | S60: Macroplanning | T60: Pending ITN arrival | U60: On track | V60: Training, Household Registration, Logistics and supply-chain, Distribution, Monitoring, Payment | W60: National | X60: DIGIT-HCM (eGov) | Y60: Bale Packaging | Z60: Incineration
A61: Burundi | C61: 2025 | D61: National - multi-phases | G61: No prioritization | H61: MUYINGA | I61: Muyinga | J61: No integration | K61: 2024-06-24 | L61: 398983 | M61: Pyrethroid-only | N61: =IF(M61=ITNs!$E$8, ITNs!E61, IF(M61=ITNs!$B$8, ITNs!B61, IF(M61=ITNs!$C$8, ITNs!C61, IF(M61=ITNs!$D$8, ITNs!D61, IF(M61=ITNs!$E$8, ITNs!E61, IF(M61=ITNs!$F$8, ITNs!F61, IF(M61=ITNs!$G$8, ITNs!G61, IF(M61=ITNs!$H$8, ITNs!H61, "ERROR")))))))) -> 249344 | Q61: Global Fund | R61: Global Fund | S61: Macroplanning | T61: Pending ITN arrival | U61: On track | V61: Training, Household Registration, Logistics and supply-chain, Distribution, Monitoring, Payment | W61: National | X61: DIGIT-HCM (eGov) | Y61: Bale Packaging | Z61: Incineration
A62: Burundi | C62: 2025 | D62: National - multi-phases | G62: No prioritization | H62: MWARO | I62: Fota | J62: No integration | K62: 2024-06-24 | L62: 218813 | M62: Pyrethroid-only | N62: =IF(M62=ITNs!$E$8, ITNs!E62, IF(M62=ITNs!$B$8, ITNs!B62, IF(M62=ITNs!$C$8, ITNs!C62, IF(M62=ITNs!$D$8, ITNs!D62, IF(M62=ITNs!$E$8, ITNs!E62, IF(M62=ITNs!$F$8, ITNs!F62, IF(M62=ITNs!$G$8, ITNs!G62, IF(M62=ITNs!$H$8, ITNs!H62, "ERROR")))))))) -> 135603 | Q62: Global Fund | R62: Global Fund | S62: Macroplanning | T62: Pending ITN arrival | U62: On track | V62: Training, Household Registration, Logistics and supply-chain, Distribution, Monitoring, Payment | W62: National | X62: DIGIT-HCM (eGov) | Y62: Bale Packaging | Z62: Incineration
A63: Burundi | C63: 2025 | D63: National - multi-phases | G63: No prioritization | H63: MWARO | I63: Kibumbu | J63: No integration | K63: 2024-06-24 | L63: 242602 | M63: Pyrethroid-only | N63: =IF(M63=ITNs!$E$8, ITNs!E63, IF(M63=ITNs!$B$8, ITNs!B63, IF(M63=ITNs!$C$8, ITNs!C63, IF(M63=ITNs!$D$8, ITNs!D63, IF(M63=ITNs!$E$8, ITNs!E63, IF(M63=ITNs!$F$8, ITNs!F63, IF(M63=ITNs!$G$8, ITNs!G63, IF(M63=ITNs!$H$8, ITNs!H63, "ERROR")))))))) -> 148257 | Q63: Global Fund | R63: Global Fund | S63: Macroplanning | T63: Pending ITN arrival | U63: On track | V63: Training, Household Registration, Logistics and supply-chain, Distribution, Monitoring, Payment | W63: National | X63: DIGIT-HCM (eGov) | Y63: Bale Packaging | Z63: Incineration
A64: Burundi | C64: 2025 | D64: National - multi-phases | G64: No prioritization | H64: NGOZI | I64: Buye | J64: No integration | K64: 2024-06-24 | L64: 297097 | M64: Pyrethroid-only | N64: =IF(M64=ITNs!$E$8, ITNs!E64, IF(M64=ITNs!$B$8, ITNs!B64, IF(M64=ITNs!$C$8, ITNs!C64, IF(M64=ITNs!$D$8, ITNs!D64, IF(M64=ITNs!$E$8, ITNs!E64, IF(M64=ITNs!$F$8, ITNs!F64, IF(M64=ITNs!$G$8, ITNs!G64, IF(M64=ITNs!$H$8, ITNs!H64, "ERROR")))))))) -> 181559 | Q64: Global Fund | R64: Global Fund | S64: Macroplanning | T64: Pending ITN arrival | U64: On track | V64: Training, Household Registration, Logistics and supply-chain, Distribution, Monitoring, Payment | W64: National | X64: DIGIT-HCM (eGov) | Y64: Bale Packaging | Z64: Incineration
A65: Burundi | C65: 2025 | D65: National - multi-phases | G65: No prioritization | H65: NGOZI | I65: Kiremba | J65: No integration | K65: 2024-06-24 | L65: 400035 | M65: Pyrethroid-only | N65: =IF(M65=ITNs!$E$8, ITNs!E65, IF(M65=ITNs!$B$8, ITNs!B65, IF(M65=ITNs!$C$8, ITNs!C65, IF(M65=ITNs!$D$8, ITNs!D65, IF(M65=ITNs!$E$8, ITNs!E65, IF(M65=ITNs!$F$8, ITNs!F65, IF(M65=ITNs!$G$8, ITNs!G65, IF(M65=ITNs!$H$8, ITNs!H65, "ERROR")))))))) -> 250464 | Q65: Global Fund | R65: Global Fund | S65: Macroplanning | T65: Pending ITN arrival | U65: On track | V65: Training, Household Registration, Logistics and supply-chain, Distribution, Monitoring, Payment | W65: National | X65: DIGIT-HCM (eGov) | Y65: Bale Packaging | Z65: Incineration
A66: Burundi | C66: 2025 | D66: National - multi-phases | G66: No prioritization | H66: RUMONGE | I66: Bugarama | J66: No integration | K66: 2024-06-24 | L66: 250490 | M66: Pyrethroid-only | N66: =IF(M66=ITNs!$E$8, ITNs!E66, IF(M66=ITNs!$B$8, ITNs!B66, IF(M66=ITNs!$C$8, ITNs!C66, IF(M66=ITNs!$D$8, ITNs!D66, IF(M66=ITNs!$E$8, ITNs!E66, IF(M66=ITNs!$F$8, ITNs!F66, IF(M66=ITNs!$G$8, ITNs!G66, IF(M66=ITNs!$H$8, ITNs!H66, "ERROR")))))))) -> 0 | Q66: Global Fund | R66: Global Fund | S66: Macroplanning | T66: Pending ITN arrival | U66: On track | V66: Training, Household Registration, Logistics and supply-chain, Distribution, Monitoring, Payment | W66: National | X66: DIGIT-HCM (eGov) | Y66: Individual Packaging | Z66: Incineration
A67: Burundi | C67: 2025 | D67: National - multi-phases | G67: No prioritization | H67: RUMONGE | I67: Rumonge | J67: No integration | K67: 2024-06-24 | L67: 344181 | M67: Dual a.i. | N67: =IF(M67=ITNs!$E$8, ITNs!E67, IF(M67=ITNs!$B$8, ITNs!B67, IF(M67=ITNs!$C$8, ITNs!C67, IF(M67=ITNs!$D$8, ITNs!D67, IF(M67=ITNs!$E$8, ITNs!E67, IF(M67=ITNs!$F$8, ITNs!F67, IF(M67=ITNs!$G$8, ITNs!G67, IF(M67=ITNs!$H$8, ITNs!H67, "ERROR")))))))) -> 210333 | Q67: Global Fund | R67: Global Fund | S67: Macroplanning | T67: Pending ITN arrival | U67: On track | V67: Training, Household Registration, Logistics and supply-chain, Distribution, Monitoring, Payment | W67: National | X67: DIGIT-HCM (eGov) | Y67: Individual Packaging | Z67: Incineration
A68: Burundi | C68: 2025 | D68: National - multi-phases | G68: No prioritization | H68: RUTANA | I68: Gihofi | J68: No integration | K68: 2024-06-24 | L68: 291508 | M68: Dual a.i. | N68: =IF(M68=ITNs!$E$8, ITNs!E68, IF(M68=ITNs!$B$8, ITNs!B68, IF(M68=ITNs!$C$8, ITNs!C68, IF(M68=ITNs!$D$8, ITNs!D68, IF(M68=ITNs!$E$8, ITNs!E68, IF(M68=ITNs!$F$8, ITNs!F68, IF(M68=ITNs!$G$8, ITNs!G68, IF(M68=ITNs!$H$8, ITNs!H68, "ERROR")))))))) -> 180131 | Q68: Global Fund | R68: Global Fund | S68: Macroplanning | T68: Pending ITN arrival | U68: On track | V68: Training, Household Registration, Logistics and supply-chain, Distribution, Monitoring, Payment | W68: National | X68: DIGIT-HCM (eGov) | Y68: Individual Packaging | Z68: Incineration
A69: Burundi | C69: 2025 | D69: National - multi-phases | G69: No prioritization | H69: RUTANA | I69: Rutana | J69: No integration | K69: 2024-06-24 | L69: 271886 | M69: Dual a.i. | N69: =IF(M69=ITNs!$E$8, ITNs!E69, IF(M69=ITNs!$B$8, ITNs!B69, IF(M69=ITNs!$C$8, ITNs!C69, IF(M69=ITNs!$D$8, ITNs!D69, IF(M69=ITNs!$E$8, ITNs!E69, IF(M69=ITNs!$F$8, ITNs!F69, IF(M69=ITNs!$G$8, ITNs!G69, IF(M69=ITNs!$H$8, ITNs!H69, "ERROR")))))))) -> 166153 | Q69: Global Fund | R69: Global Fund | S69: Macroplanning | T69: Pending ITN arrival | U69: On track | V69: Training, Household Registration, Logistics and supply-chain, Distribution, Monitoring, Payment | W69: National | X69: DIGIT-HCM (eGov) | Y69: Individual Packaging | Z69: Incineration
A70: Burundi | C70: 2025 | D70: National - multi-phases | G70: No prioritization | H70: RUYIGI | I70: Butezi | J70: No integration | K70: 2024-06-24 | L70: 172922 | M70: Dual a.i. | N70: =IF(M70=ITNs!$E$8, ITNs!E70, IF(M70=ITNs!$B$8, ITNs!B70, IF(M70=ITNs!$C$8, ITNs!C70, IF(M70=ITNs!$D$8, ITNs!D70, IF(M70=ITNs!$E$8, ITNs!E70, IF(M70=ITNs!$F$8, ITNs!F70, IF(M70=ITNs!$G$8, ITNs!G70, IF(M70=ITNs!$H$8, ITNs!H70, "ERROR")))))))) -> 131122 | Q70: Global Fund | R70: Global Fund | S70: Macroplanning | T70: Pending ITN arrival | U70: On track | V70: Training, Household Registration, Logistics and supply-chain, Distribution, Monitoring, Payment | W70: National | X70: DIGIT-HCM (eGov) | Y70: Individual Packaging | Z70: Incineration
A71: Burundi | C71: 2025 | D71: National - multi-phases | G71: No prioritization | H71: RUYIGI | I71: Gisuru | J71: No integration | K71: 2024-06-24 | L71: 168018 | M71: Dual a.i. | N71: =IF(M71=ITNs!$E$8, ITNs!E71, IF(M71=ITNs!$B$8, ITNs!B71, IF(M71=ITNs!$C$8, ITNs!C71, IF(M71=ITNs!$D$8, ITNs!D71, IF(M71=ITNs!$E$8, ITNs!E71, IF(M71=ITNs!$F$8, ITNs!F71, IF(M71=ITNs!$G$8, ITNs!G71, IF(M71=ITNs!$H$8, ITNs!H71, "ERROR")))))))) -> 102678 | Q71: Global Fund | R71: Global Fund | S71: Macroplanning | T71: Pending ITN arrival | U71: On track | V71: Training, Household Registration, Logistics and supply-chain, Distribution, Monitoring, Payment | W71: National | X71: DIGIT-HCM (eGov) | Y71: Individual Packaging | Z71: Incineration
A72: Burundi | C72: 2025 | D72: National - multi-phases | G72: No prioritization | H72: RUYIGI | I72: Kinyinya | J72: No integration | K72: 2024-06-24 | L72: 176652 | M72: Dual a.i. | N72: =IF(M72=ITNs!$E$8, ITNs!E72, IF(M72=ITNs!$B$8, ITNs!B72, IF(M72=ITNs!$C$8, ITNs!C72, IF(M72=ITNs!$D$8, ITNs!D72, IF(M72=ITNs!$E$8, ITNs!E72, IF(M72=ITNs!$F$8, ITNs!F72, IF(M72=ITNs!$G$8, ITNs!G72, IF(M72=ITNs!$H$8, ITNs!H72, "ERROR")))))))) -> 107954 | Q72: Global Fund | R72: Global Fund | S72: Macroplanning | T72: Pending ITN arrival | U72: On track | V72: Training, Household Registration, Logistics and supply-chain, Distribution, Monitoring, Payment | W72: National | X72: DIGIT-HCM (eGov) | Y72: Individual Packaging | Z72: Incineration
A73: Burundi | C73: 2025 | D73: National - multi-phases | G73: No prioritization | H73: RUYIGI | I73: Ruyigi | J73: No integration | K73: 2024-06-24 | L73: 159018 | M73: Dual a.i. | N73: =IF(M73=ITNs!$E$8, ITNs!E73, IF(M73=ITNs!$B$8, ITNs!B73, IF(M73=ITNs!$C$8, ITNs!C73, IF(M73=ITNs!$D$8, ITNs!D73, IF(M73=ITNs!$E$8, ITNs!E73, IF(M73=ITNs!$F$8, ITNs!F73, IF(M73=ITNs!$G$8, ITNs!G73, IF(M73=ITNs!$H$8, ITNs!H73, "ERROR")))))))) -> 109324 | Q73: Global Fund | R73: Global Fund | S73: Macroplanning | T73: Pending ITN arrival | U73: On track | V73: Training, Household Registration, Logistics and supply-chain, Distribution, Monitoring, Payment | W73: National | X73: DIGIT-HCM (eGov) | Y73: Individual Packaging | Z73: Incineration
A74: Cabo Verde | B74: The rainy season typically extends from August to October, with the peak of rainfall usually occurring in September. | C74: 2025 | D74: No campaign this year | M74: Multi-products | N74: =IF(M74=ITNs!$E$8, ITNs!E74, IF(M74=ITNs!$B$8, ITNs!B74, IF(M74=ITNs!$C$8, ITNs!C74, IF(M74=ITNs!$D$8, ITNs!D74, IF(M74=ITNs!$E$8, ITNs!E74, IF(M74=ITNs!$F$8, ITNs!F74, IF(M74=ITNs!$G$8, ITNs!G74, IF(M74=ITNs!$H$8, ITNs!H74, "ERROR")))))))) -> 0
A75: Cambodia | B75: Monsoon season, typically occurs from May to October. | C75: 2025 | D75: National - one phase | M75: Multi-products | N75: =IF(M75=ITNs!$E$8, ITNs!E75, IF(M75=ITNs!$B$8, ITNs!B75, IF(M75=ITNs!$C$8, ITNs!C75, IF(M75=ITNs!$D$8, ITNs!D75, IF(M75=ITNs!$E$8, ITNs!E75, IF(M75=ITNs!$F$8, ITNs!F75, IF(M75=ITNs!$G$8, ITNs!G75, IF(M75=ITNs!$H$8, ITNs!H75, "ERROR")))))))) -> 170000 | Q75: PMI
A76: Cameroon | B76: Generally from March to November, with two main rainy seasons: the long rainy season from March to June and the short rainy season from September to November. | C76: 2025 | D76: Sub-national - one phase | M76: Dual a.i. | N76: =IF(M76=ITNs!$E$8, ITNs!E76, IF(M76=ITNs!$B$8, ITNs!B76, IF(M76=ITNs!$C$8, ITNs!C76, IF(M76=ITNs!$D$8, ITNs!D76, IF(M76=ITNs!$E$8, ITNs!E76, IF(M76=ITNs!$F$8, ITNs!F76, IF(M76=ITNs!$G$8, ITNs!G76, IF(M76=ITNs!$H$8, ITNs!H76, "ERROR")))))))) -> 794200 | Q76: Global Fund
A77: Cameroon | C77: 2025 | D77: Sub-national - one phase | F77: Hybrid approach | G77: No prioritization | H77: Nord Ouest | I77: Ako | J77: No integration | K77: 2024-03-24 | L77: 64144 | M77: Dual a.i. | N77: =IF(M77=ITNs!$E$8, ITNs!E77, IF(M77=ITNs!$B$8, ITNs!B77, IF(M77=ITNs!$C$8, ITNs!C77, IF(M77=ITNs!$D$8, ITNs!D77, IF(M77=ITNs!$E$8, ITNs!E77, IF(M77=ITNs!$F$8, ITNs!F77, IF(M77=ITNs!$G$8, ITNs!G77, IF(M77=ITNs!$H$8, ITNs!H77, "ERROR")))))))) -> 35650 | O77: June | P77: Distribution ongoing, Remaining Health districts from 2021-22 campaign | Q77: Global Fund | S77: Implementation | T77: Delivered in-country | U77: On track | V77: Distribution | W77: National | X77: DHIS2 | Y77: Individual Packaging
A78: Cameroon | C78: 2025 | D78: Sub-national - one phase | F78: Hybrid approach | G78: No prioritization | H78: Nord Ouest | I78: Bali | J78: No integration | K78: 2024-03-24 | L78: 28944 | M78: Dual a.i. | N78: =IF(M78=ITNs!$E$8, ITNs!E78, IF(M78=ITNs!$B$8, ITNs!B78, IF(M78=ITNs!$C$8, ITNs!C78, IF(M78=ITNs!$D$8, ITNs!D78, IF(M78=ITNs!$E$8, ITNs!E78, IF(M78=ITNs!$F$8, ITNs!F78, IF(M78=ITNs!$G$8, ITNs!G78, IF(M78=ITNs!$H$8, ITNs!H78, "ERROR")))))))) -> 16000 | O78: June | P78: Distribution ongoing, Remaining Health districts from 2021-22 campaign | Q78: Global Fund | S78: Implementation | T78: Delivered in-country | U78: On track | V78: Distribution | W78: National | X78: DHIS2 | Y78: Individual Packaging
A79: Cameroon | C79: 2025 | D79: Sub-national - one phase | F79: Hybrid approach | G79: No prioritization | H79: Nord Ouest | I79: Batibo | J79: No integration | K79: 2024-03-24 | L79: 73906 | M79: Dual a.i. | N79: =IF(M79=ITNs!$E$8, ITNs!E79, IF(M79=ITNs!$B$8, ITNs!B79, IF(M79=ITNs!$C$8, ITNs!C79, IF(M79=ITNs!$D$8, ITNs!D79, IF(M79=ITNs!$E$8, ITNs!E79, IF(M79=ITNs!$F$8, ITNs!F79, IF(M79=ITNs!$G$8, ITNs!G79, IF(M79=ITNs!$H$8, ITNs!H79, "ERROR")))))))) -> 40950 | O79: June | P79: Distribution ongoing, Remaining Health districts from 2021-22 campaign | Q79: Global Fund | S79: Implementation | T79: Delivered in-country | U79: On track | V79: Distribution | W79: National | X79: DHIS2 | Y79: Individual Packaging
A80: Cameroon | C80: 2025 | D80: Sub-national - one phase | F80: Hybrid approach | G80: No prioritization | H80: Nord Ouest | I80: Fundong | J80: No integration | K80: 2024-03-24 | L80: 164557 | M80: Dual a.i. | N80: =IF(M80=ITNs!$E$8, ITNs!E80, IF(M80=ITNs!$B$8, ITNs!B80, IF(M80=ITNs!$C$8, ITNs!C80, IF(M80=ITNs!$D$8, ITNs!D80, IF(M80=ITNs!$E$8, ITNs!E80, IF(M80=ITNs!$F$8, ITNs!F80, IF(M80=ITNs!$G$8, ITNs!G80, IF(M80=ITNs!$H$8, ITNs!H80, "ERROR")))))))) -> 91500 | O80: June | P80: Distribution ongoing, Remaining Health districts from 2021-22 campaign | Q80: Global Fund | S80: Implementation | T80: Delivered in-country | U80: On track | V80: Distribution | W80: National | X80: DHIS2 | Y80: Individual Packaging
A81: Cameroon | C81: 2025 | D81: Sub-national - one phase | F81: Hybrid approach | G81: No prioritization | H81: Nord Ouest | I81: Mbengwi | J81: No integration | K81: 2024-03-24 | L81: 48034 | M81: Dual a.i. | N81: =IF(M81=ITNs!$E$8, ITNs!E81, IF(M81=ITNs!$B$8, ITNs!B81, IF(M81=ITNs!$C$8, ITNs!C81, IF(M81=ITNs!$D$8, ITNs!D81, IF(M81=ITNs!$E$8, ITNs!E81, IF(M81=ITNs!$F$8, ITNs!F81, IF(M81=ITNs!$G$8, ITNs!G81, IF(M81=ITNs!$H$8, ITNs!H81, "ERROR")))))))) -> 26750 | O81: June | P81: Distribution ongoing, Remaining Health districts from 2021-22 campaign | Q81: Global Fund | S81: Implementation | T81: Delivered in-country | U81: On track | V81: Distribution | W81: National | X81: DHIS2 | Y81: Individual Packaging
A82: Cameroon | C82: 2025 | D82: Sub-national - one phase | F82: Hybrid approach | G82: No prioritization | H82: Nord Ouest | I82: Ndop | J82: No integration | K82: 2024-03-24 | L82: 252950 | M82: Dual a.i. | N82: =IF(M82=ITNs!$E$8, ITNs!E82, IF(M82=ITNs!$B$8, ITNs!B82, IF(M82=ITNs!$C$8, ITNs!C82, IF(M82=ITNs!$D$8, ITNs!D82, IF(M82=ITNs!$E$8, ITNs!E82, IF(M82=ITNs!$F$8, ITNs!F82, IF(M82=ITNs!$G$8, ITNs!G82, IF(M82=ITNs!$H$8, ITNs!H82, "ERROR")))))))) -> 140550 | O82: June | P82: Distribution ongoing, Remaining Health districts from 2021-22 campaign | Q82: Global Fund | S82: Implementation | T82: Delivered in-country | U82: On track | V82: Distribution | W82: National | X82: DHIS2 | Y82: Individual Packaging
A83: Cameroon | C83: 2025 | D83: Sub-national - one phase | F83: Hybrid approach | G83: No prioritization | H83: Nord Ouest | I83: Njikwa | J83: No integration | K83: 2024-03-24 | L83: 20749 | M83: Dual a.i. | N83: =IF(M83=ITNs!$E$8, ITNs!E83, IF(M83=ITNs!$B$8, ITNs!B83, IF(M83=ITNs!$C$8, ITNs!C83, IF(M83=ITNs!$D$8, ITNs!D83, IF(M83=ITNs!$E$8, ITNs!E83, IF(M83=ITNs!$F$8, ITNs!F83, IF(M83=ITNs!$G$8, ITNs!G83, IF(M83=ITNs!$H$8, ITNs!H83, "ERROR")))))))) -> 11500 | O83: June | P83: Distribution ongoing, Remaining Health districts from 2021-22 campaign | Q83: Global Fund | S83: Implementation | T83: Delivered in-country | U83: On track | V83: Distribution | W83: National | X83: DHIS2 | Y83: Individual Packaging
A84: Cameroon | C84: 2025 | D84: Sub-national - one phase | F84: Hybrid approach | G84: No prioritization | H84: Nord Ouest | I84: Nkambe | J84: No integration | K84: 2024-03-24 | L84: 136278 | M84: Dual a.i. | N84: =IF(M84=ITNs!$E$8, ITNs!E84, IF(M84=ITNs!$B$8, ITNs!B84, IF(M84=ITNs!$C$8, ITNs!C84, IF(M84=ITNs!$D$8, ITNs!D84, IF(M84=ITNs!$E$8, ITNs!E84, IF(M84=ITNs!$F$8, ITNs!F84, IF(M84=ITNs!$G$8, ITNs!G84, IF(M84=ITNs!$H$8, ITNs!H84, "ERROR")))))))) -> 75750 | O84: June | P84: Distribution ongoing, Remaining Health districts from 2021-22 campaign | Q84: Global Fund | S84: Implementation | T84: Delivered in-country | U84: On track | V84: Distribution | W84: National | X84: DHIS2 | Y84: Individual Packaging
A85: Cameroon | C85: 2025 | D85: Sub-national - one phase | F85: Hybrid approach | G85: No prioritization | H85: Nord Ouest | I85: Nwa | J85: No integration | K85: 2024-03-24 | L85: 63895 | M85: Dual a.i. | N85: =IF(M85=ITNs!$E$8, ITNs!E85, IF(M85=ITNs!$B$8, ITNs!B85, IF(M85=ITNs!$C$8, ITNs!C85, IF(M85=ITNs!$D$8, ITNs!D85, IF(M85=ITNs!$E$8, ITNs!E85, IF(M85=ITNs!$F$8, ITNs!F85, IF(M85=ITNs!$G$8, ITNs!G85, IF(M85=ITNs!$H$8, ITNs!H85, "ERROR")))))))) -> 35450 | O85: June | P85: Distribution ongoing, Remaining Health districts from 2021-22 campaign | Q85: Global Fund | S85: Implementation | T85: Delivered in-country | U85: On track | V85: Distribution | W85: National | X85: DHIS2 | Y85: Individual Packaging
A86: Cameroon | C86: 2025 | D86: Sub-national - one phase | F86: Hybrid approach | G86: No prioritization | H86: Nord Ouest | I86: Oku | J86: No integration | K86: 2024-03-24 | L86: 88155 | M86: Dual a.i. | N86: =IF(M86=ITNs!$E$8, ITNs!E86, IF(M86=ITNs!$B$8, ITNs!B86, IF(M86=ITNs!$C$8, ITNs!C86, IF(M86=ITNs!$D$8, ITNs!D86, IF(M86=ITNs!$E$8, ITNs!E86, IF(M86=ITNs!$F$8, ITNs!F86, IF(M86=ITNs!$G$8, ITNs!G86, IF(M86=ITNs!$H$8, ITNs!H86, "ERROR")))))))) -> 48950 | O86: June | P86: Distribution ongoing, Remaining Health districts from 2021-22 campaign | Q86: Global Fund | S86: Implementation | T86: Delivered in-country | U86: On track | V86: Distribution | W86: National | X86: DHIS2 | Y86: Individual Packaging
A87: Cameroon | C87: 2025 | D87: Sub-national - one phase | F87: Hybrid approach | G87: No prioritization | H87: Nord Ouest | I87: Wum | J87: No integration | K87: 2024-03-24 | L87: 135656 | M87: Dual a.i. | N87: =IF(M87=ITNs!$E$8, ITNs!E87, IF(M87=ITNs!$B$8, ITNs!B87, IF(M87=ITNs!$C$8, ITNs!C87, IF(M87=ITNs!$D$8, ITNs!D87, IF(M87=ITNs!$E$8, ITNs!E87, IF(M87=ITNs!$F$8, ITNs!F87, IF(M87=ITNs!$G$8, ITNs!G87, IF(M87=ITNs!$H$8, ITNs!H87, "ERROR")))))))) -> 75350 | O87: June | P87: Distribution ongoing, Remaining Health districts from 2021-22 campaign | Q87: Global Fund | S87: Implementation | T87: Delivered in-country | U87: On track | V87: Distribution | W87: National | X87: DHIS2 | Y87: Individual Packaging
A88: Cameroon | C88: 2025 | D88: Sub-national - one phase | F88: Hybrid approach | G88: No prioritization | H88: Sud Ouest | I88: Akwaya | J88: No integration | K88: 2024-03-24 | L88: 68866 | M88: Dual a.i. | N88: =IF(M88=ITNs!$E$8, ITNs!E88, IF(M88=ITNs!$B$8, ITNs!B88, IF(M88=ITNs!$C$8, ITNs!C88, IF(M88=ITNs!$D$8, ITNs!D88, IF(M88=ITNs!$E$8, ITNs!E88, IF(M88=ITNs!$F$8, ITNs!F88, IF(M88=ITNs!$G$8, ITNs!G88, IF(M88=ITNs!$H$8, ITNs!H88, "ERROR")))))))) -> 38250 | O88: June | P88: Distribution ongoing, Remaining Health districts from 2021-22 campaign | Q88: Global Fund | S88: Implementation | T88: Delivered in-country | U88: On track | V88: Distribution | W88: National | X88: DHIS2 | Y88: Individual Packaging
A89: Cameroon | C89: 2025 | D89: Sub-national - one phase | F89: Hybrid approach | G89: No prioritization | H89: Sud Ouest | I89: Bangem | J89: No integration | K89: 2024-03-24 | L89: 25059 | M89: Dual a.i. | N89: =IF(M89=ITNs!$E$8, ITNs!E89, IF(M89=ITNs!$B$8, ITNs!B89, IF(M89=ITNs!$C$8, ITNs!C89, IF(M89=ITNs!$D$8, ITNs!D89, IF(M89=ITNs!$E$8, ITNs!E89, IF(M89=ITNs!$F$8, ITNs!F89, IF(M89=ITNs!$G$8, ITNs!G89, IF(M89=ITNs!$H$8, ITNs!H89, "ERROR")))))))) -> 13950 | O89: June | P89: Distribution ongoing, Remaining Health districts from 2021-22 campaign | Q89: Global Fund | S89: Implementation | T89: Delivered in-country | U89: On track | V89: Distribution | W89: National | X89: DHIS2 | Y89: Individual Packaging
A90: Cameroon | C90: 2025 | D90: Sub-national - one phase | F90: Hybrid approach | G90: No prioritization | H90: Sud Ouest | I90: Fontem | J90: No integration | K90: 2024-03-24 | L90: 123879 | M90: Dual a.i. | N90: =IF(M90=ITNs!$E$8, ITNs!E90, IF(M90=ITNs!$B$8, ITNs!B90, IF(M90=ITNs!$C$8, ITNs!C90, IF(M90=ITNs!$D$8, ITNs!D90, IF(M90=ITNs!$E$8, ITNs!E90, IF(M90=ITNs!$F$8, ITNs!F90, IF(M90=ITNs!$G$8, ITNs!G90, IF(M90=ITNs!$H$8, ITNs!H90, "ERROR")))))))) -> 68900 | O90: June | P90: Distribution ongoing, Remaining Health districts from 2021-22 campaign | Q90: Global Fund | S90: Implementation | T90: Delivered in-country | U90: On track | V90: Distribution | W90: National | X90: DHIS2 | Y90: Individual Packaging
A91: Cameroon | C91: 2025 | D91: Sub-national - one phase | F91: Hybrid approach | G91: No prioritization | H91: Sud Ouest | I91: Tombel | J91: No integration | K91: 2024-03-24 | L91: 86029 | M91: Dual a.i. | N91: =IF(M91=ITNs!$E$8, ITNs!E91, IF(M91=ITNs!$B$8, ITNs!B91, IF(M91=ITNs!$C$8, ITNs!C91, IF(M91=ITNs!$D$8, ITNs!D91, IF(M91=ITNs!$E$8, ITNs!E91, IF(M91=ITNs!$F$8, ITNs!F91, IF(M91=ITNs!$G$8, ITNs!G91, IF(M91=ITNs!$H$8, ITNs!H91, "ERROR")))))))) -> 47750 | O91: June | P91: Distribution ongoing, Remaining Health districts from 2021-22 campaign | Q91: Global Fund | S91: Implementation | T91: Delivered in-country | U91: On track | V91: Distribution | W91: National | X91: DHIS2 | Y91: Individual Packaging
A92: Cameroon | C92: 2025 | D92: Sub-national - one phase | F92: Hybrid approach | G92: No prioritization | H92: Sud Ouest | I92: Wabane | J92: No integration | K92: 2024-03-24 | L92: 48438 | M92: Dual a.i. | N92: =IF(M92=ITNs!$E$8, ITNs!E92, IF(M92=ITNs!$B$8, ITNs!B92, IF(M92=ITNs!$C$8, ITNs!C92, IF(M92=ITNs!$D$8, ITNs!D92, IF(M92=ITNs!$E$8, ITNs!E92, IF(M92=ITNs!$F$8, ITNs!F92, IF(M92=ITNs!$G$8, ITNs!G92, IF(M92=ITNs!$H$8, ITNs!H92, "ERROR")))))))) -> 26950 | O92: June | P92: Distribution ongoing, Remaining Health districts from 2021-22 campaign | Q92: Global Fund | S92: Implementation | T92: Delivered in-country | U92: On track | V92: Distribution | W92: National | X92: DHIS2 | Y92: Individual Packaging
A93: Cameroon | B93: Generally from March to November, with two main rainy seasons: the long rainy season from March to June and the short rainy season from September to November. | C93: 2025 | D93: Sub-national - multi phases | M93: Dual a.i. | N93: =IF(M93=ITNs!$E$8, ITNs!E93, IF(M93=ITNs!$B$8, ITNs!B93, IF(M93=ITNs!$C$8, ITNs!C93, IF(M93=ITNs!$D$8, ITNs!D93, IF(M93=ITNs!$E$8, ITNs!E93, IF(M93=ITNs!$F$8, ITNs!F93, IF(M93=ITNs!$G$8, ITNs!G93, IF(M93=ITNs!$H$8, ITNs!H93, "ERROR")))))))) -> 10793346 | Q93: Global Fund
A94: Cameroon | C94: 2025 | D94: Sub-national - multi phases | G94: No prioritization | H94: Adamaoua | K94: 2025-06-01 | M94: Dual a.i. | N94: =IF(M94=ITNs!$E$8, ITNs!E94, IF(M94=ITNs!$B$8, ITNs!B94, IF(M94=ITNs!$C$8, ITNs!C94, IF(M94=ITNs!$D$8, ITNs!D94, IF(M94=ITNs!$E$8, ITNs!E94, IF(M94=ITNs!$F$8, ITNs!F94, IF(M94=ITNs!$G$8, ITNs!G94, IF(M94=ITNs!$H$8, ITNs!H94, "ERROR")))))))) -> 856541 | P94: Phase 1 | Q94: Global Fund | S94: Not started | T94: Pending ITN arrival | V94: Household registration
A95: Cameroon | C95: 2025 | D95: Sub-national - multi phases | G95: National focus with prioritization of ITNs in non-urban areas over urban areas, National focus with prioritization of ITNs in urban areas over non-urban areas | H95: Littoral (Douala) | K95: 2025-06-01 | M95: Dual a.i. | N95: =IF(M95=ITNs!$E$8, ITNs!E95, IF(M95=ITNs!$B$8, ITNs!B95, IF(M95=ITNs!$C$8, ITNs!C95, IF(M95=ITNs!$D$8, ITNs!D95, IF(M95=ITNs!$E$8, ITNs!E95, IF(M95=ITNs!$F$8, ITNs!F95, IF(M95=ITNs!$G$8, ITNs!G95, IF(M95=ITNs!$H$8, ITNs!H95, "ERROR")))))))) -> 2120296 | P95: Phase 1 | Q95: Global Fund | S95: Not started | T95: Pending ITN arrival | V95: Household registration
A96: Cameroon | C96: 2025 | D96: Sub-national - multi phases | G96: No prioritization | H96: Est | K96: 2025-06-01 | M96: Dual a.i. | N96: =IF(M96=ITNs!$E$8, ITNs!E96, IF(M96=ITNs!$B$8, ITNs!B96, IF(M96=ITNs!$C$8, ITNs!C96, IF(M96=ITNs!$D$8, ITNs!D96, IF(M96=ITNs!$E$8, ITNs!E96, IF(M96=ITNs!$F$8, ITNs!F96, IF(M96=ITNs!$G$8, ITNs!G96, IF(M96=ITNs!$H$8, ITNs!H96, "ERROR")))))))) -> 713206 | P96: Phase 1 | Q96: Global Fund | S96: Not started | T96: Pending ITN arrival | V96: Household registration
A97: Cameroon | C97: 2025 | D97: Sub-national - multi phases | G97: No prioritization | H97: Extreme Nord | K97: 2025-06-01 | M97: Dual a.i. | N97: =IF(M97=ITNs!$E$8, ITNs!E97, IF(M97=ITNs!$B$8, ITNs!B97, IF(M97=ITNs!$C$8, ITNs!C97, IF(M97=ITNs!$D$8, ITNs!D97, IF(M97=ITNs!$E$8, ITNs!E97, IF(M97=ITNs!$F$8, ITNs!F97, IF(M97=ITNs!$G$8, ITNs!G97, IF(M97=ITNs!$H$8, ITNs!H97, "ERROR")))))))) -> 3055063 | P97: Phase 1 | Q97: Global Fund | S97: Not started | T97: Pending ITN arrival | V97: Household registration
A98: Cameroon | C98: 2025 | D98: Sub-national - multi phases | G98: National focus with prioritization of ITNs in non-urban areas over urban areas | H98: Littoral rural | K98: 2025-06-01 | M98: Dual a.i. | N98: =IF(M98=ITNs!$E$8, ITNs!E98, IF(M98=ITNs!$B$8, ITNs!B98, IF(M98=ITNs!$C$8, ITNs!C98, IF(M98=ITNs!$D$8, ITNs!D98, IF(M98=ITNs!$E$8, ITNs!E98, IF(M98=ITNs!$F$8, ITNs!F98, IF(M98=ITNs!$G$8, ITNs!G98, IF(M98=ITNs!$H$8, ITNs!H98, "ERROR")))))))) -> 379076 | P98: Phase 1 | Q98: Global Fund | S98: Not started | T98: Pending ITN arrival | V98: Household registration
A99: Cameroon | C99: 2025 | D99: Sub-national - multi phases | G99: No prioritization | H99: Nord | K99: 2025-06-01 | M99: Dual a.i. | N99: =IF(M99=ITNs!$E$8, ITNs!E99, IF(M99=ITNs!$B$8, ITNs!B99, IF(M99=ITNs!$C$8, ITNs!C99, IF(M99=ITNs!$D$8, ITNs!D99, IF(M99=ITNs!$E$8, ITNs!E99, IF(M99=ITNs!$F$8, ITNs!F99, IF(M99=ITNs!$G$8, ITNs!G99, IF(M99=ITNs!$H$8, ITNs!H99, "ERROR")))))))) -> 1936619 | P99: Phase 1 | Q99: Global Fund | S99: Not started | T99: Pending ITN arrival | V99: Household registration
A100: Cameroon | C100: 2025 | D100: Sub-national - multi phases | G100: No prioritization | H100: Ouest | K100: 2025-06-01 | M100: Dual a.i. | N100: =IF(M100=ITNs!$E$8, ITNs!E100, IF(M100=ITNs!$B$8, ITNs!B100, IF(M100=ITNs!$C$8, ITNs!C100, IF(M100=ITNs!$D$8, ITNs!D100, IF(M100=ITNs!$E$8, ITNs!E100, IF(M100=ITNs!$F$8, ITNs!F100, IF(M100=ITNs!$G$8, ITNs!G100, IF(M100=ITNs!$H$8, ITNs!H100, "ERROR")))))))) -> 1240468 | P100: Phase 1 | Q100: Global Fund | S100: Not started | T100: Pending ITN arrival | V100: Household registration
A101: Cameroon | C101: 2025 | D101: Sub-national - multi phases | G101: No prioritization | H101: Sud | K101: 2025-06-01 | M101: Dual a.i. | N101: =IF(M101=ITNs!$E$8, ITNs!E101, IF(M101=ITNs!$B$8, ITNs!B101, IF(M101=ITNs!$C$8, ITNs!C101, IF(M101=ITNs!$D$8, ITNs!D101, IF(M101=ITNs!$E$8, ITNs!E101, IF(M101=ITNs!$F$8, ITNs!F101, IF(M101=ITNs!$G$8, ITNs!G101, IF(M101=ITNs!$H$8, ITNs!H101, "ERROR")))))))) -> 492077 | P101: Phase 1 | Q101: Global Fund | S101: Not started | T101: Pending ITN arrival | V101: Household registration
A102: Cameroon | C102: 2026 | D102: Sub-national - multi phases | M102: Dual a.i. | N102: =IF(M102=ITNs!$E$8, ITNs!E102, IF(M102=ITNs!$B$8, ITNs!B102, IF(M102=ITNs!$C$8, ITNs!C102, IF(M102=ITNs!$D$8, ITNs!D102, IF(M102=ITNs!$E$8, ITNs!E102, IF(M102=ITNs!$F$8, ITNs!F102, IF(M102=ITNs!$G$8, ITNs!G102, IF(M102=ITNs!$H$8, ITNs!H102, "ERROR")))))))) -> 5697026 | Q102: Government
A103: Cameroon | C103: 2026 | D103: Sub-national - multi phases | G103: National focus with prioritization of ITNs in urban areas over non-urban areas | H103: Centre | K103: 2026-02-26 | M103: Dual a.i. | N103: =IF(M103=ITNs!$E$8, ITNs!E103, IF(M103=ITNs!$B$8, ITNs!B103, IF(M103=ITNs!$C$8, ITNs!C103, IF(M103=ITNs!$D$8, ITNs!D103, IF(M103=ITNs!$E$8, ITNs!E103, IF(M103=ITNs!$F$8, ITNs!F103, IF(M103=ITNs!$G$8, ITNs!G103, IF(M103=ITNs!$H$8, ITNs!H103, "ERROR")))))))) -> 981169 | P103: Phase 2 | Q103: Government | S103: Not started | T103: Pending ITN arrival
A104: Cameroon | C104: 2026 | D104: Sub-national - multi phases | G104: No prioritization | H104: Nord Ouest | K104: 2026-02-26 | M104: Dual a.i. | N104: =IF(M104=ITNs!$E$8, ITNs!E104, IF(M104=ITNs!$B$8, ITNs!B104, IF(M104=ITNs!$C$8, ITNs!C104, IF(M104=ITNs!$D$8, ITNs!D104, IF(M104=ITNs!$E$8, ITNs!E104, IF(M104=ITNs!$F$8, ITNs!F104, IF(M104=ITNs!$G$8, ITNs!G104, IF(M104=ITNs!$H$8, ITNs!H104, "ERROR")))))))) -> 1381361 | P104: Phase 2 | Q104: Government | S104: Not started | T104: Pending ITN arrival
A105: Cameroon | C105: 2026 | D105: Sub-national - multi phases | G105: No prioritization | H105: Sud Ouest | K105: 2026-02-26 | M105: Dual a.i. | N105: =IF(M105=ITNs!$E$8, ITNs!E105, IF(M105=ITNs!$B$8, ITNs!B105, IF(M105=ITNs!$C$8, ITNs!C105, IF(M105=ITNs!$D$8, ITNs!D105, IF(M105=ITNs!$E$8, ITNs!E105, IF(M105=ITNs!$F$8, ITNs!F105, IF(M105=ITNs!$G$8, ITNs!G105, IF(M105=ITNs!$H$8, ITNs!H105, "ERROR")))))))) -> 1193807 | P105: Phase 2 | Q105: Government | S105: Not started | T105: Pending ITN arrival
A106: Cameroon | C106: 2026 | D106: Sub-national - multi phases | G106: National focus with prioritization of ITNs in non-urban areas over urban areas, National focus with prioritization of ITNs in urban areas over non-urban areas | H106: Yaounde | K106: 2026-02-26 | M106: Dual a.i. | N106: =IF(M106=ITNs!$E$8, ITNs!E106, IF(M106=ITNs!$B$8, ITNs!B106, IF(M106=ITNs!$C$8, ITNs!C106, IF(M106=ITNs!$D$8, ITNs!D106, IF(M106=ITNs!$E$8, ITNs!E106, IF(M106=ITNs!$F$8, ITNs!F106, IF(M106=ITNs!$G$8, ITNs!G106, IF(M106=ITNs!$H$8, ITNs!H106, "ERROR")))))))) -> 2140689 | P106: Phase 2 | Q106: Government | S106: Not started | T106: Pending ITN arrival
A107: CAR | B107: Typically from March to November, with peak rainfall usually occurring from May to October. The rainy season is characterized by two peaks, one in May and June and another in September and October. | C107: 2024 | D107: No campaign this year | M107: PBO | N107: =IF(M107=ITNs!$E$8, ITNs!E107, IF(M107=ITNs!$B$8, ITNs!B107, IF(M107=ITNs!$C$8, ITNs!C107, IF(M107=ITNs!$D$8, ITNs!D107, IF(M107=ITNs!$E$8, ITNs!E107, IF(M107=ITNs!$F$8, ITNs!F107, IF(M107=ITNs!$G$8, ITNs!G107, IF(M107=ITNs!$H$8, ITNs!H107, "ERROR")))))))) -> 4290650
A108: CAR | C108: 2025 | D108: National - one phase | H108: 7 Régions sanitaires | L108: 6723431 | M108: PBO | N108: =IF(M108=ITNs!$E$8, ITNs!E108, IF(M108=ITNs!$B$8, ITNs!B108, IF(M108=ITNs!$C$8, ITNs!C108, IF(M108=ITNs!$D$8, ITNs!D108, IF(M108=ITNs!$E$8, ITNs!E108, IF(M108=ITNs!$F$8, ITNs!F108, IF(M108=ITNs!$G$8, ITNs!G108, IF(M108=ITNs!$H$8, ITNs!H108, "ERROR")))))))) -> 4290650 | Q108: Global Fund
A109: CAR - ROUTINE | C109: 2025 | M109: Dual a.i. | N109: =IF(M109=ITNs!$E$8, ITNs!E109, IF(M109=ITNs!$B$8, ITNs!B109, IF(M109=ITNs!$C$8, ITNs!C109, IF(M109=ITNs!$D$8, ITNs!D109, IF(M109=ITNs!$E$8, ITNs!E109, IF(M109=ITNs!$F$8, ITNs!F109, IF(M109=ITNs!$G$8, ITNs!G109, IF(M109=ITNs!$H$8, ITNs!H109, "ERROR")))))))) -> 744750 | AA109: La campagne de 2025 sera une campagne unique qui va se dérouler simultanément dans toutes les régions sanitaires du pays. L'arrivée des moustiquaires au pays est prévue pour le mois de mai 2025. Aucun mois n'ayant été pour l'instant retenu pour la distribution, la campagne ne pourra donc être menée qu'après l'arrivée des moustiquaires c'est-à-dire après le mois de mai 2025.
A110: Chad | B110: Generally from June to September, with peak rainfall usually occurring from July to August. Chad's rainy season is shorter compared to other Central African countries. | C110: 2026 | M110: Multi-products | N110: =IF(M110=ITNs!$E$8, ITNs!E110, IF(M110=ITNs!$B$8, ITNs!B110, IF(M110=ITNs!$C$8, ITNs!C110, IF(M110=ITNs!$D$8, ITNs!D110, IF(M110=ITNs!$E$8, ITNs!E110, IF(M110=ITNs!$F$8, ITNs!F110, IF(M110=ITNs!$G$8, ITNs!G110, IF(M110=ITNs!$H$8, ITNs!H110, "ERROR")))))))) -> 0
A111: Comoros | B111: Rainy season typically occurs from November to April. | C111: 2025 | M111: Pyrethroid-only | N111: =IF(M111=ITNs!$E$8, ITNs!E111, IF(M111=ITNs!$B$8, ITNs!B111, IF(M111=ITNs!$C$8, ITNs!C111, IF(M111=ITNs!$D$8, ITNs!D111, IF(M111=ITNs!$E$8, ITNs!E111, IF(M111=ITNs!$F$8, ITNs!F111, IF(M111=ITNs!$G$8, ITNs!G111, IF(M111=ITNs!$H$8, ITNs!H111, "ERROR")))))))) -> 121400
A112: Congo Brazzaville | B112: Typically from March to November, with peak rainfall usually occurring from April to June and a secondary peak from September to November. | C112: 2024 | M112: Multi-products | N112: =IF(M112=ITNs!$E$8, ITNs!E112, IF(M112=ITNs!$B$8, ITNs!B112, IF(M112=ITNs!$C$8, ITNs!C112, IF(M112=ITNs!$D$8, ITNs!D112, IF(M112=ITNs!$E$8, ITNs!E112, IF(M112=ITNs!$F$8, ITNs!F112, IF(M112=ITNs!$G$8, ITNs!G112, IF(M112=ITNs!$H$8, ITNs!H112, "ERROR")))))))) -> 4643261
A113: Congo Brazzaville | C113: 2025 | M113: Multi-products | N113: =IF(M113=ITNs!$E$8, ITNs!E113, IF(M113=ITNs!$B$8, ITNs!B113, IF(M113=ITNs!$C$8, ITNs!C113, IF(M113=ITNs!$D$8, ITNs!D113, IF(M113=ITNs!$E$8, ITNs!E113, IF(M113=ITNs!$F$8, ITNs!F113, IF(M113=ITNs!$G$8, ITNs!G113, IF(M113=ITNs!$H$8, ITNs!H113, "ERROR")))))))) -> 436295
A114: Congo (Democratic Republic) | B114: Typically from March to November, with peak rainfall usually occurring from April to June and a secondary peak from September to November. | C114: 2024 | D114: Sub-national - one phase | M114: Multi-products | N114: =IF(M114=ITNs!$E$8, ITNs!E114, IF(M114=ITNs!$B$8, ITNs!B114, IF(M114=ITNs!$C$8, ITNs!C114, IF(M114=ITNs!$D$8, ITNs!D114, IF(M114=ITNs!$E$8, ITNs!E114, IF(M114=ITNs!$F$8, ITNs!F114, IF(M114=ITNs!$G$8, ITNs!G114, IF(M114=ITNs!$H$8, ITNs!H114, "ERROR")))))))) -> 10164004
A115: Congo (Democratic Republic) | B115: Typically from March to November, with peak rainfall usually occurring from April to June and a secondary peak from September to November. | C115: 2024 | D115: Sub-national - one phase | H115: KINSHASA | K115: 2023-10-01 | L115: 12723186 | M115: Dual a.i. | N115: =IF(M115=ITNs!$E$8, ITNs!E115, IF(M115=ITNs!$B$8, ITNs!B115, IF(M115=ITNs!$C$8, ITNs!C115, IF(M115=ITNs!$D$8, ITNs!D115, IF(M115=ITNs!$E$8, ITNs!E115, IF(M115=ITNs!$F$8, ITNs!F115, IF(M115=ITNs!$G$8, ITNs!G115, IF(M115=ITNs!$H$8, ITNs!H115, "ERROR")))))))) -> 10164004 | O115: 2024-01-01 | Q115: AMF
A116: Congo (Democratic Republic) | B116: Typically from March to November, with peak rainfall usually occurring from April to June and a secondary peak from September to November. | C116: 2025 | M116: Multi-products | N116: =IF(M116=ITNs!$E$8, ITNs!E116, IF(M116=ITNs!$B$8, ITNs!B116, IF(M116=ITNs!$C$8, ITNs!C116, IF(M116=ITNs!$D$8, ITNs!D116, IF(M116=ITNs!$E$8, ITNs!E116, IF(M116=ITNs!$F$8, ITNs!F116, IF(M116=ITNs!$G$8, ITNs!G116, IF(M116=ITNs!$H$8, ITNs!H116, "ERROR")))))))) -> 6641966
A117: Cote d'Ivoire | B117: Rainy Season: Typically from May to October, with the heaviest rainfall occurring between June and September. | C117: 2024 | D117: Sub-national - one phase | H117: 101 health districts excluding the ten health districts in Abidjan where ITN distribution is postponed to 2025 , as well as the two health districts of Nassian and Sakassou that conducted the 2023 ITN mini campaign. In addition, forty-seven villages in Beoumi and forty villages in Tiebissou where trial studies are being carried out (EaveTube with In2Care and ITN Standard/PBO/IG2 with Global Fund) will also be excluded from the 2024 mass distribution. | M117: Dual a.i. | N117: =IF(M117=ITNs!$E$8, ITNs!E117, IF(M117=ITNs!$B$8, ITNs!B117, IF(M117=ITNs!$C$8, ITNs!C117, IF(M117=ITNs!$D$8, ITNs!D117, IF(M117=ITNs!$E$8, ITNs!E117, IF(M117=ITNs!$F$8, ITNs!F117, IF(M117=ITNs!$G$8, ITNs!G117, IF(M117=ITNs!$H$8, ITNs!H117, "ERROR")))))))) -> 14731533 | U117: On track | V117: Real-time tracking, household registration, distribution, and supervision | W117: Selected province/region | Y117: Individual Packaging | Z117: Burial | AA117: PMI Evolve facilitated the distribution of PBO ITNs in 28 districts, while the Global Fund supported the remaining 73 districts with Dual AI, PBO, and standard nets. 16 of the 101 districts nationwide piloted mass campaign digitalization efforts, including three districts supported by PMI Evolve PMI Evolve shared key messages emphasizing that the individual packaging should not be reused for food storage and should instead be either returned to the health facility or deeply buried for proper disposal. PMI Evolve recommends a system where community health workers would collect ITN waste and return it to health facilities for proper disposal.
A118: Cote d'Ivoire | B118: Rainy Season: Typically from May to October, with the heaviest rainfall occurring between June and September. | C118: 2025 | M118: Multi-products | N118: =IF(M118=ITNs!$E$8, ITNs!E118, IF(M118=ITNs!$B$8, ITNs!B118, IF(M118=ITNs!$C$8, ITNs!C118, IF(M118=ITNs!$D$8, ITNs!D118, IF(M118=ITNs!$E$8, ITNs!E118, IF(M118=ITNs!$F$8, ITNs!F118, IF(M118=ITNs!$G$8, ITNs!G118, IF(M118=ITNs!$H$8, ITNs!H118, "ERROR")))))))) -> 701602
A119: Cote d'Ivoire | B119: Rainy Season: Typically from May to October, with the heaviest rainfall occurring between June and September. | C119: 2026 | M119: Multi-products | N119: =IF(M119=ITNs!$E$8, ITNs!E119, IF(M119=ITNs!$B$8, ITNs!B119, IF(M119=ITNs!$C$8, ITNs!C119, IF(M119=ITNs!$D$8, ITNs!D119, IF(M119=ITNs!$E$8, ITNs!E119, IF(M119=ITNs!$F$8, ITNs!F119, IF(M119=ITNs!$G$8, ITNs!G119, IF(M119=ITNs!$H$8, ITNs!H119, "ERROR")))))))) -> 12209385
A120: Djibouti | B120: Rainy season typically occurs from late June to early September. | C120: 2024 | D120: No campaign this year | M120: Dual a.i. | N120: =IF(M120=ITNs!$E$8, ITNs!E120, IF(M120=ITNs!$B$8, ITNs!B120, IF(M120=ITNs!$C$8, ITNs!C120, IF(M120=ITNs!$D$8, ITNs!D120, IF(M120=ITNs!$E$8, ITNs!E120, IF(M120=ITNs!$F$8, ITNs!F120, IF(M120=ITNs!$G$8, ITNs!G120, IF(M120=ITNs!$H$8, ITNs!H120, "ERROR")))))))) -> 39858
A121: Djibouti | B121: Rainy season typically occurs from late June to early September. | C121: 2025 | M121: Dual a.i. | N121: =IF(M121=ITNs!$E$8, ITNs!E121, IF(M121=ITNs!$B$8, ITNs!B121, IF(M121=ITNs!$C$8, ITNs!C121, IF(M121=ITNs!$D$8, ITNs!D121, IF(M121=ITNs!$E$8, ITNs!E121, IF(M121=ITNs!$F$8, ITNs!F121, IF(M121=ITNs!$G$8, ITNs!G121, IF(M121=ITNs!$H$8, ITNs!H121, "ERROR")))))))) -> 256779
A122: Djibouti | B122: Rainy season typically occurs from late June to early September. | C122: 2026 | M122: Dual a.i. | N122: =IF(M122=ITNs!$E$8, ITNs!E122, IF(M122=ITNs!$B$8, ITNs!B122, IF(M122=ITNs!$C$8, ITNs!C122, IF(M122=ITNs!$D$8, ITNs!D122, IF(M122=ITNs!$E$8, ITNs!E122, IF(M122=ITNs!$F$8, ITNs!F122, IF(M122=ITNs!$G$8, ITNs!G122, IF(M122=ITNs!$H$8, ITNs!H122, "ERROR")))))))) -> 40580
A123: Equatorial Guinea - mainland | B123: Rainy season generally from February to May and from September to December, with peak rainfall usually occurring from March to May and from October to December. | C123: 2025 | M123: Multi-products | N123: =IF(M123=ITNs!$E$8, ITNs!E123, IF(M123=ITNs!$B$8, ITNs!B123, IF(M123=ITNs!$C$8, ITNs!C123, IF(M123=ITNs!$D$8, ITNs!D123, IF(M123=ITNs!$E$8, ITNs!E123, IF(M123=ITNs!$F$8, ITNs!F123, IF(M123=ITNs!$G$8, ITNs!G123, IF(M123=ITNs!$H$8, ITNs!H123, "ERROR")))))))) -> 0 | Q123: Global Fund
A124: Equatorial Guinea - Bioko | C124: 2025 | M124: Multi-products | N124: =IF(M124=ITNs!$E$8, ITNs!E124, IF(M124=ITNs!$B$8, ITNs!B124, IF(M124=ITNs!$C$8, ITNs!C124, IF(M124=ITNs!$D$8, ITNs!D124, IF(M124=ITNs!$E$8, ITNs!E124, IF(M124=ITNs!$F$8, ITNs!F124, IF(M124=ITNs!$G$8, ITNs!G124, IF(M124=ITNs!$H$8, ITNs!H124, "ERROR")))))))) -> 0 | Q124: Other
A125: Eritrea | B125: Rainy season typically occurs from June to September. | C125: 2024 | D125: No campaign this year | M125: Pyrethroid-only | N125: =IF(M125=ITNs!$E$8, ITNs!E125, IF(M125=ITNs!$B$8, ITNs!B125, IF(M125=ITNs!$C$8, ITNs!C125, IF(M125=ITNs!$D$8, ITNs!D125, IF(M125=ITNs!$E$8, ITNs!E125, IF(M125=ITNs!$F$8, ITNs!F125, IF(M125=ITNs!$G$8, ITNs!G125, IF(M125=ITNs!$H$8, ITNs!H125, "ERROR")))))))) -> 120276
A126: Eritrea | B126: Rainy season typically occurs from June to September. | C126: 2025 | M126: Pyrethroid-only | N126: =IF(M126=ITNs!$E$8, ITNs!E126, IF(M126=ITNs!$B$8, ITNs!B126, IF(M126=ITNs!$C$8, ITNs!C126, IF(M126=ITNs!$D$8, ITNs!D126, IF(M126=ITNs!$E$8, ITNs!E126, IF(M126=ITNs!$F$8, ITNs!F126, IF(M126=ITNs!$G$8, ITNs!G126, IF(M126=ITNs!$H$8, ITNs!H126, "ERROR")))))))) -> 143773
A127: Eritrea | B127: Rainy season typically occurs from June to September. | C127: 2026 | M127: Multi-products | N127: =IF(M127=ITNs!$E$8, ITNs!E127, IF(M127=ITNs!$B$8, ITNs!B127, IF(M127=ITNs!$C$8, ITNs!C127, IF(M127=ITNs!$D$8, ITNs!D127, IF(M127=ITNs!$E$8, ITNs!E127, IF(M127=ITNs!$F$8, ITNs!F127, IF(M127=ITNs!$G$8, ITNs!G127, IF(M127=ITNs!$H$8, ITNs!H127, "ERROR")))))))) -> 468284
A128: Eswatini | B128: Generally from October to April, with peak rainfall usually occurring from December to February. | C128: 2025 | M128: PBO | N128: =IF(M128=ITNs!$E$8, ITNs!E128, IF(M128=ITNs!$B$8, ITNs!B128, IF(M128=ITNs!$C$8, ITNs!C128, IF(M128=ITNs!$D$8, ITNs!D128, IF(M128=ITNs!$E$8, ITNs!E128, IF(M128=ITNs!$F$8, ITNs!F128, IF(M128=ITNs!$G$8, ITNs!G128, IF(M128=ITNs!$H$8, ITNs!H128, "ERROR")))))))) -> 10000
A129: Eswatini | B129: Generally from October to April, with peak rainfall usually occurring from December to February. | C129: 2026 | M129: PBO | N129: =IF(M129=ITNs!$E$8, ITNs!E129, IF(M129=ITNs!$B$8, ITNs!B129, IF(M129=ITNs!$C$8, ITNs!C129, IF(M129=ITNs!$D$8, ITNs!D129, IF(M129=ITNs!$E$8, ITNs!E129, IF(M129=ITNs!$F$8, ITNs!F129, IF(M129=ITNs!$G$8, ITNs!G129, IF(M129=ITNs!$H$8, ITNs!H129, "ERROR")))))))) -> 10500
A130: Ethiopia | B130: The main rainy season in Ethiopia, known as the Belg season, typically occurs from February to May, with peak rainfall in April. Kiremt Season: The second rainy season, known as the Kiremt season, occurs from June to September, with peak rainfall in July and August. Rainfall patterns in Ethiopia can vary significantly across different regions, with the highlands and central plateau receiving the most rainfall. | C130: 2024 | D130: Sub-national - one phase | M130: Dual a.i. | N130: =IF(M130=ITNs!$E$8, ITNs!E130, IF(M130=ITNs!$B$8, ITNs!B130, IF(M130=ITNs!$C$8, ITNs!C130, IF(M130=ITNs!$D$8, ITNs!D130, IF(M130=ITNs!$E$8, ITNs!E130, IF(M130=ITNs!$F$8, ITNs!F130, IF(M130=ITNs!$G$8, ITNs!G130, IF(M130=ITNs!$H$8, ITNs!H130, "ERROR")))))))) -> 8066144 | Q130: Multiple
A131: Ethiopia | C131: 2024 | D131: Sub-national - one phase | H131: Oromia | K131: 2024-06-01 | L131: 7516256 | M131: Dual a.i. | N131: =IF(M131=ITNs!$E$8, ITNs!E131, IF(M131=ITNs!$B$8, ITNs!B131, IF(M131=ITNs!$C$8, ITNs!C131, IF(M131=ITNs!$D$8, ITNs!D131, IF(M131=ITNs!$E$8, ITNs!E131, IF(M131=ITNs!$F$8, ITNs!F131, IF(M131=ITNs!$G$8, ITNs!G131, IF(M131=ITNs!$H$8, ITNs!H131, "ERROR")))))))) -> 3382612 | Q131: Multiple
A132: Ethiopia | C132: 2024 | D132: Sub-national - one phase | H132: Amhara | K132: 2024-06-01 | L132: 5623388 | M132: Dual a.i. | N132: =IF(M132=ITNs!$E$8, ITNs!E132, IF(M132=ITNs!$B$8, ITNs!B132, IF(M132=ITNs!$C$8, ITNs!C132, IF(M132=ITNs!$D$8, ITNs!D132, IF(M132=ITNs!$E$8, ITNs!E132, IF(M132=ITNs!$F$8, ITNs!F132, IF(M132=ITNs!$G$8, ITNs!G132, IF(M132=ITNs!$H$8, ITNs!H132, "ERROR")))))))) -> 2424706 | Q132: Multiple
A133: Ethiopia | C133: 2024 | D133: Sub-national - one phase | H133: Somali | K133: 2024-06-01 | L133: 3519908 | M133: Dual a.i. | N133: =IF(M133=ITNs!$E$8, ITNs!E133, IF(M133=ITNs!$B$8, ITNs!B133, IF(M133=ITNs!$C$8, ITNs!C133, IF(M133=ITNs!$D$8, ITNs!D133, IF(M133=ITNs!$E$8, ITNs!E133, IF(M133=ITNs!$F$8, ITNs!F133, IF(M133=ITNs!$G$8, ITNs!G133, IF(M133=ITNs!$H$8, ITNs!H133, "ERROR")))))))) -> 1553104 | Q133: Multiple
A134: Ethiopia | C134: 2024 | D134: Sub-national - one phase | H134: Gambella | K134: 2024-02-01 | L134: 138663 | M134: Dual a.i. | N134: =IF(M134=ITNs!$E$8, ITNs!E134, IF(M134=ITNs!$B$8, ITNs!B134, IF(M134=ITNs!$C$8, ITNs!C134, IF(M134=ITNs!$D$8, ITNs!D134, IF(M134=ITNs!$E$8, ITNs!E134, IF(M134=ITNs!$F$8, ITNs!F134, IF(M134=ITNs!$G$8, ITNs!G134, IF(M134=ITNs!$H$8, ITNs!H134, "ERROR")))))))) -> 77035 | Q134: USAID/PMI
A135: Ethiopia | C135: 2024 | D135: Sub-national - one phase | H135: South Ethiopia | K135: 2024-06-01 | L135: 485438 | M135: Dual a.i. | N135: =IF(M135=ITNs!$E$8, ITNs!E135, IF(M135=ITNs!$B$8, ITNs!B135, IF(M135=ITNs!$C$8, ITNs!C135, IF(M135=ITNs!$D$8, ITNs!D135, IF(M135=ITNs!$E$8, ITNs!E135, IF(M135=ITNs!$F$8, ITNs!F135, IF(M135=ITNs!$G$8, ITNs!G135, IF(M135=ITNs!$H$8, ITNs!H135, "ERROR")))))))) -> 190084 | Q135: USAID/PMI
A136: Ethiopia | C136: 2024 | D136: Sub-national - one phase | H136: Central Ethiopia | K136: 2024-06-01 | L136: 300859 | M136: Dual a.i. | N136: =IF(M136=ITNs!$E$8, ITNs!E136, IF(M136=ITNs!$B$8, ITNs!B136, IF(M136=ITNs!$C$8, ITNs!C136, IF(M136=ITNs!$D$8, ITNs!D136, IF(M136=ITNs!$E$8, ITNs!E136, IF(M136=ITNs!$F$8, ITNs!F136, IF(M136=ITNs!$G$8, ITNs!G136, IF(M136=ITNs!$H$8, ITNs!H136, "ERROR")))))))) -> 167144 | Q136: USAID/PMI
A137: Ethiopia | C137: 2024 | D137: Sub-national - one phase | H137: Dire Dawa Rural kebeles | K137: 2024-06-01 | L137: 181077 | M137: Dual a.i. | N137: =IF(M137=ITNs!$E$8, ITNs!E137, IF(M137=ITNs!$B$8, ITNs!B137, IF(M137=ITNs!$C$8, ITNs!C137, IF(M137=ITNs!$D$8, ITNs!D137, IF(M137=ITNs!$E$8, ITNs!E137, IF(M137=ITNs!$F$8, ITNs!F137, IF(M137=ITNs!$G$8, ITNs!G137, IF(M137=ITNs!$H$8, ITNs!H137, "ERROR")))))))) -> 100598 | Q137: USAID/PMI
A138: Ethiopia | C138: 2024 | D138: Sub-national - one phase | H138: Benishangul Gumuz | K138: 2024-05-01 | L138: 164313 | M138: Dual a.i. | N138: =IF(M138=ITNs!$E$8, ITNs!E138, IF(M138=ITNs!$B$8, ITNs!B138, IF(M138=ITNs!$C$8, ITNs!C138, IF(M138=ITNs!$D$8, ITNs!D138, IF(M138=ITNs!$E$8, ITNs!E138, IF(M138=ITNs!$F$8, ITNs!F138, IF(M138=ITNs!$G$8, ITNs!G138, IF(M138=ITNs!$H$8, ITNs!H138, "ERROR")))))))) -> 91285 | Q138: USAID/PMI
A139: Ethiopia | C139: 2024 | D139: Sub-national - one phase | H139: Tigray | K139: 2024-05-01 | L139: 143286 | M139: Dual a.i. | N139: =IF(M139=ITNs!$E$8, ITNs!E139, IF(M139=ITNs!$B$8, ITNs!B139, IF(M139=ITNs!$C$8, ITNs!C139, IF(M139=ITNs!$D$8, ITNs!D139, IF(M139=ITNs!$E$8, ITNs!E139, IF(M139=ITNs!$F$8, ITNs!F139, IF(M139=ITNs!$G$8, ITNs!G139, IF(M139=ITNs!$H$8, ITNs!H139, "ERROR")))))))) -> 79576 | Q139: USAID/PMI
A140: Gabon | B140: Typically from February to May and from September to December, with peak rainfall usually occurring from March to May and from October to December. | C140: 2025 | M140: Multi-products | N140: =IF(M140=ITNs!$E$8, ITNs!E140, IF(M140=ITNs!$B$8, ITNs!B140, IF(M140=ITNs!$C$8, ITNs!C140, IF(M140=ITNs!$D$8, ITNs!D140, IF(M140=ITNs!$E$8, ITNs!E140, IF(M140=ITNs!$F$8, ITNs!F140, IF(M140=ITNs!$G$8, ITNs!G140, IF(M140=ITNs!$H$8, ITNs!H140, "ERROR")))))))) -> 0
A141: Gambia (The) | B141: Rainy season typically spans from June to October. | C141: 2024 | D141: No campaign this year | M141: Dual a.i. | N141: =IF(M141=ITNs!$E$8, ITNs!E141, IF(M141=ITNs!$B$8, ITNs!B141, IF(M141=ITNs!$C$8, ITNs!C141, IF(M141=ITNs!$D$8, ITNs!D141, IF(M141=ITNs!$E$8, ITNs!E141, IF(M141=ITNs!$F$8, ITNs!F141, IF(M141=ITNs!$G$8, ITNs!G141, IF(M141=ITNs!$H$8, ITNs!H141, "ERROR")))))))) -> 1608391
A142: Gambia (The) | B142: Rainy season typically spans from June to October. | C142: 2025 | M142: Dual a.i. | N142: =IF(M142=ITNs!$E$8, ITNs!E142, IF(M142=ITNs!$B$8, ITNs!B142, IF(M142=ITNs!$C$8, ITNs!C142, IF(M142=ITNs!$D$8, ITNs!D142, IF(M142=ITNs!$E$8, ITNs!E142, IF(M142=ITNs!$F$8, ITNs!F142, IF(M142=ITNs!$G$8, ITNs!G142, IF(M142=ITNs!$H$8, ITNs!H142, "ERROR")))))))) -> 50000
A143: Gambia (The) | B143: Rainy season typically spans from June to October. | C143: 2026 | M143: Dual a.i. | N143: =IF(M143=ITNs!$E$8, ITNs!E143, IF(M143=ITNs!$B$8, ITNs!B143, IF(M143=ITNs!$C$8, ITNs!C143, IF(M143=ITNs!$D$8, ITNs!D143, IF(M143=ITNs!$E$8, ITNs!E143, IF(M143=ITNs!$F$8, ITNs!F143, IF(M143=ITNs!$G$8, ITNs!G143, IF(M143=ITNs!$H$8, ITNs!H143, "ERROR")))))))) -> 80000
A144: Ghana | B144: Rainy season typically spans from June to October. | C144: 2024 | M144: Pyrethroid-only | N144: =IF(M144=ITNs!$E$8, ITNs!E144, IF(M144=ITNs!$B$8, ITNs!B144, IF(M144=ITNs!$C$8, ITNs!C144, IF(M144=ITNs!$D$8, ITNs!D144, IF(M144=ITNs!$E$8, ITNs!E144, IF(M144=ITNs!$F$8, ITNs!F144, IF(M144=ITNs!$G$8, ITNs!G144, IF(M144=ITNs!$H$8, ITNs!H144, "ERROR")))))))) -> 274070
A145: Ghana | B145: Rainy Season: Generally from April to October, with the heaviest rainfall occurring between June and September. | C145: 2025 | M145: Multi-products | N145: =IF(M145=ITNs!$E$8, ITNs!E145, IF(M145=ITNs!$B$8, ITNs!B145, IF(M145=ITNs!$C$8, ITNs!C145, IF(M145=ITNs!$D$8, ITNs!D145, IF(M145=ITNs!$E$8, ITNs!E145, IF(M145=ITNs!$F$8, ITNs!F145, IF(M145=ITNs!$G$8, ITNs!G145, IF(M145=ITNs!$H$8, ITNs!H145, "ERROR")))))))) -> 2414155
A146: Ghana | B146: Rainy Season: Generally from April to October, with the heaviest rainfall occurring between June and September. | C146: 2026 | M146: Multi-products | N146: =IF(M146=ITNs!$E$8, ITNs!E146, IF(M146=ITNs!$B$8, ITNs!B146, IF(M146=ITNs!$C$8, ITNs!C146, IF(M146=ITNs!$D$8, ITNs!D146, IF(M146=ITNs!$E$8, ITNs!E146, IF(M146=ITNs!$F$8, ITNs!F146, IF(M146=ITNs!$G$8, ITNs!G146, IF(M146=ITNs!$H$8, ITNs!H146, "ERROR")))))))) -> 4566912
A147: Guinea | B147: Rainy Season: Generally from May to October, with peak rainfall usually occurring between June and September. | C147: 2024 | D147: No campaign this year | M147: Dual a.i. | N147: =IF(M147=ITNs!$E$8, ITNs!E147, IF(M147=ITNs!$B$8, ITNs!B147, IF(M147=ITNs!$C$8, ITNs!C147, IF(M147=ITNs!$D$8, ITNs!D147, IF(M147=ITNs!$E$8, ITNs!E147, IF(M147=ITNs!$F$8, ITNs!F147, IF(M147=ITNs!$G$8, ITNs!G147, IF(M147=ITNs!$H$8, ITNs!H147, "ERROR")))))))) -> 191350
A148: Guinea | B148: Rainy Season: Generally from May to October, with peak rainfall usually occurring between June and September. | C148: 2025 | D148: National - one phase | M148: Dual a.i. | N148: =IF(M148=ITNs!$E$8, ITNs!E148, IF(M148=ITNs!$B$8, ITNs!B148, IF(M148=ITNs!$C$8, ITNs!C148, IF(M148=ITNs!$D$8, ITNs!D148, IF(M148=ITNs!$E$8, ITNs!E148, IF(M148=ITNs!$F$8, ITNs!F148, IF(M148=ITNs!$G$8, ITNs!G148, IF(M148=ITNs!$H$8, ITNs!H148, "ERROR")))))))) -> 5334800
A149: Guinea Bissau | B149: Rainy season typically extends from June to October. | C149: 2024 | D149: No campaign this year | M149: Multi-products | N149: =IF(M149=ITNs!$E$8, ITNs!E149, IF(M149=ITNs!$B$8, ITNs!B149, IF(M149=ITNs!$C$8, ITNs!C149, IF(M149=ITNs!$D$8, ITNs!D149, IF(M149=ITNs!$E$8, ITNs!E149, IF(M149=ITNs!$F$8, ITNs!F149, IF(M149=ITNs!$G$8, ITNs!G149, IF(M149=ITNs!$H$8, ITNs!H149, "ERROR")))))))) -> 1770860
A150: Guinea Bissau | B150: Rainy season typically extends from June to October. | C150: 2025 | M150: Multi-products | N150: =IF(M150=ITNs!$E$8, ITNs!E150, IF(M150=ITNs!$B$8, ITNs!B150, IF(M150=ITNs!$C$8, ITNs!C150, IF(M150=ITNs!$D$8, ITNs!D150, IF(M150=ITNs!$E$8, ITNs!E150, IF(M150=ITNs!$F$8, ITNs!F150, IF(M150=ITNs!$G$8, ITNs!G150, IF(M150=ITNs!$H$8, ITNs!H150, "ERROR")))))))) -> 190208
A151: Guinea Bissau | B151: Rainy season typically extends from June to October. | C151: 2026 | M151: Multi-products | N151: =IF(M151=ITNs!$E$8, ITNs!E151, IF(M151=ITNs!$B$8, ITNs!B151, IF(M151=ITNs!$C$8, ITNs!C151, IF(M151=ITNs!$D$8, ITNs!D151, IF(M151=ITNs!$E$8, ITNs!E151, IF(M151=ITNs!$F$8, ITNs!F151, IF(M151=ITNs!$G$8, ITNs!G151, IF(M151=ITNs!$H$8, ITNs!H151, "ERROR")))))))) -> 207032
A152: Haiti | B152: Rainy season usually spans from May to October. | C152: 2024 | M152: Pyrethroid-only | N152: =IF(M152=ITNs!$E$8, ITNs!E152, IF(M152=ITNs!$B$8, ITNs!B152, IF(M152=ITNs!$C$8, ITNs!C152, IF(M152=ITNs!$D$8, ITNs!D152, IF(M152=ITNs!$E$8, ITNs!E152, IF(M152=ITNs!$F$8, ITNs!F152, IF(M152=ITNs!$G$8, ITNs!G152, IF(M152=ITNs!$H$8, ITNs!H152, "ERROR")))))))) -> 69099
A153: Haiti | B153: Rainy season usually spans from May to October. | C153: 2025 | M153: Pyrethroid-only | N153: =IF(M153=ITNs!$E$8, ITNs!E153, IF(M153=ITNs!$B$8, ITNs!B153, IF(M153=ITNs!$C$8, ITNs!C153, IF(M153=ITNs!$D$8, ITNs!D153, IF(M153=ITNs!$E$8, ITNs!E153, IF(M153=ITNs!$F$8, ITNs!F153, IF(M153=ITNs!$G$8, ITNs!G153, IF(M153=ITNs!$H$8, ITNs!H153, "ERROR")))))))) -> 101815
A154: Haiti | B154: Rainy season usually spans from May to October. | C154: 2026 | M154: Pyrethroid-only | N154: =IF(M154=ITNs!$E$8, ITNs!E154, IF(M154=ITNs!$B$8, ITNs!B154, IF(M154=ITNs!$C$8, ITNs!C154, IF(M154=ITNs!$D$8, ITNs!D154, IF(M154=ITNs!$E$8, ITNs!E154, IF(M154=ITNs!$F$8, ITNs!F154, IF(M154=ITNs!$G$8, ITNs!G154, IF(M154=ITNs!$H$8, ITNs!H154, "ERROR")))))))) -> 1052052
A155: Honduras | B155: Rainy season typically occurs from May to October. | C155: 2024 | D155: No campaign this year | M155: Multi-products | N155: =IF(M155=ITNs!$E$8, ITNs!E155, IF(M155=ITNs!$B$8, ITNs!B155, IF(M155=ITNs!$C$8, ITNs!C155, IF(M155=ITNs!$D$8, ITNs!D155, IF(M155=ITNs!$E$8, ITNs!E155, IF(M155=ITNs!$F$8, ITNs!F155, IF(M155=ITNs!$G$8, ITNs!G155, IF(M155=ITNs!$H$8, ITNs!H155, "ERROR")))))))) -> 71231
A156: Honduras | C156: 2025 | M156: Multi-products | N156: =IF(M156=ITNs!$E$8, ITNs!E156, IF(M156=ITNs!$B$8, ITNs!B156, IF(M156=ITNs!$C$8, ITNs!C156, IF(M156=ITNs!$D$8, ITNs!D156, IF(M156=ITNs!$E$8, ITNs!E156, IF(M156=ITNs!$F$8, ITNs!F156, IF(M156=ITNs!$G$8, ITNs!G156, IF(M156=ITNs!$H$8, ITNs!H156, "ERROR")))))))) -> 98636
A157: India | B157: Monsoon season, usually occurs from June to September. | C157: 2024 | M157: Pyrethroid-only | N157: =IF(M157=ITNs!$E$8, ITNs!E157, IF(M157=ITNs!$B$8, ITNs!B157, IF(M157=ITNs!$C$8, ITNs!C157, IF(M157=ITNs!$D$8, ITNs!D157, IF(M157=ITNs!$E$8, ITNs!E157, IF(M157=ITNs!$F$8, ITNs!F157, IF(M157=ITNs!$G$8, ITNs!G157, IF(M157=ITNs!$H$8, ITNs!H157, "ERROR")))))))) -> 25221045
A158: India | B158: Monsoon season, usually occurs from June to September. | C158: 2025 | M158: Pyrethroid-only | N158: =IF(M158=ITNs!$E$8, ITNs!E158, IF(M158=ITNs!$B$8, ITNs!B158, IF(M158=ITNs!$C$8, ITNs!C158, IF(M158=ITNs!$D$8, ITNs!D158, IF(M158=ITNs!$E$8, ITNs!E158, IF(M158=ITNs!$F$8, ITNs!F158, IF(M158=ITNs!$G$8, ITNs!G158, IF(M158=ITNs!$H$8, ITNs!H158, "ERROR")))))))) -> 0
A159: India | B159: Monsoon season, usually occurs from June to September. | C159: 2026 | M159: Pyrethroid-only | N159: =IF(M159=ITNs!$E$8, ITNs!E159, IF(M159=ITNs!$B$8, ITNs!B159, IF(M159=ITNs!$C$8, ITNs!C159, IF(M159=ITNs!$D$8, ITNs!D159, IF(M159=ITNs!$E$8, ITNs!E159, IF(M159=ITNs!$F$8, ITNs!F159, IF(M159=ITNs!$G$8, ITNs!G159, IF(M159=ITNs!$H$8, ITNs!H159, "ERROR")))))))) -> 0
A160: Indonesia | B160: Rainy season typically occurs from November to March in most parts of the country, with variations depending on the region. | C160: 2024 | M160: Pyrethroid-only | N160: =IF(M160=ITNs!$E$8, ITNs!E160, IF(M160=ITNs!$B$8, ITNs!B160, IF(M160=ITNs!$C$8, ITNs!C160, IF(M160=ITNs!$D$8, ITNs!D160, IF(M160=ITNs!$E$8, ITNs!E160, IF(M160=ITNs!$F$8, ITNs!F160, IF(M160=ITNs!$G$8, ITNs!G160, IF(M160=ITNs!$H$8, ITNs!H160, "ERROR")))))))) -> 2285600
A161: Indonesia | B161: Rainy season typically occurs from November to March in most parts of the country, with variations depending on the region. | C161: 2025 | M161: Pyrethroid-only | N161: =IF(M161=ITNs!$E$8, ITNs!E161, IF(M161=ITNs!$B$8, ITNs!B161, IF(M161=ITNs!$C$8, ITNs!C161, IF(M161=ITNs!$D$8, ITNs!D161, IF(M161=ITNs!$E$8, ITNs!E161, IF(M161=ITNs!$F$8, ITNs!F161, IF(M161=ITNs!$G$8, ITNs!G161, IF(M161=ITNs!$H$8, ITNs!H161, "ERROR")))))))) -> 43600
A162: Indonesia | B162: Rainy season typically occurs from November to March in most parts of the country, with variations depending on the region. | C162: 2026 | M162: Pyrethroid-only | N162: =IF(M162=ITNs!$E$8, ITNs!E162, IF(M162=ITNs!$B$8, ITNs!B162, IF(M162=ITNs!$C$8, ITNs!C162, IF(M162=ITNs!$D$8, ITNs!D162, IF(M162=ITNs!$E$8, ITNs!E162, IF(M162=ITNs!$F$8, ITNs!F162, IF(M162=ITNs!$G$8, ITNs!G162, IF(M162=ITNs!$H$8, ITNs!H162, "ERROR")))))))) -> 17650
A163: Kenya | B163: Long Rains: Typically occur from March to May, with the peak of rainfall in April. Short Rains: Generally occur from October to December, with the peak in November. | C163: 2024 | D163: Sub-national - one phase | M163: Multi-products | N163: =IF(M163=ITNs!$E$8, ITNs!E163, IF(M163=ITNs!$B$8, ITNs!B163, IF(M163=ITNs!$C$8, ITNs!C163, IF(M163=ITNs!$D$8, ITNs!D163, IF(M163=ITNs!$E$8, ITNs!E163, IF(M163=ITNs!$F$8, ITNs!F163, IF(M163=ITNs!$G$8, ITNs!G163, IF(M163=ITNs!$H$8, ITNs!H163, "ERROR")))))))) -> 5921014
A164: Kenya | C164: 2024 | D164: Sub-national - one phase | H164: Kisumu | K164: 2024-03-01 | L164: 1348577 | M164: PBO | N164: =IF(M164=ITNs!$E$8, ITNs!E164, IF(M164=ITNs!$B$8, ITNs!B164, IF(M164=ITNs!$C$8, ITNs!C164, IF(M164=ITNs!$D$8, ITNs!D164, IF(M164=ITNs!$E$8, ITNs!E164, IF(M164=ITNs!$F$8, ITNs!F164, IF(M164=ITNs!$G$8, ITNs!G164, IF(M164=ITNs!$H$8, ITNs!H164, "ERROR")))))))) -> 0 | Q164: Global Fund
A165: Kenya | C165: 2024 | D165: Sub-national - one phase | H165: Siaya | K165: 2024-03-01 | L165: 1150131 | M165: PBO | N165: =IF(M165=ITNs!$E$8, ITNs!E165, IF(M165=ITNs!$B$8, ITNs!B165, IF(M165=ITNs!$C$8, ITNs!C165, IF(M165=ITNs!$D$8, ITNs!D165, IF(M165=ITNs!$E$8, ITNs!E165, IF(M165=ITNs!$F$8, ITNs!F165, IF(M165=ITNs!$G$8, ITNs!G165, IF(M165=ITNs!$H$8, ITNs!H165, "ERROR")))))))) -> 0 | Q165: Global Fund
A166: Kenya | C166: 2024 | D166: Sub-national - one phase | H166: Busia | K166: 2024-06-01 | L166: 1037996 | M166: PBO | N166: =IF(M166=ITNs!$E$8, ITNs!E166, IF(M166=ITNs!$B$8, ITNs!B166, IF(M166=ITNs!$C$8, ITNs!C166, IF(M166=ITNs!$D$8, ITNs!D166, IF(M166=ITNs!$E$8, ITNs!E166, IF(M166=ITNs!$F$8, ITNs!F166, IF(M166=ITNs!$G$8, ITNs!G166, IF(M166=ITNs!$H$8, ITNs!H166, "ERROR")))))))) -> 0 | Q166: Global Fund
A167: Kenya | C167: 2024 | D167: Sub-national - one phase | H167: Migori | K167: 2024-03-01 | L167: 1352907 | M167: PBO | N167: =IF(M167=ITNs!$E$8, ITNs!E167, IF(M167=ITNs!$B$8, ITNs!B167, IF(M167=ITNs!$C$8, ITNs!C167, IF(M167=ITNs!$D$8, ITNs!D167, IF(M167=ITNs!$E$8, ITNs!E167, IF(M167=ITNs!$F$8, ITNs!F167, IF(M167=ITNs!$G$8, ITNs!G167, IF(M167=ITNs!$H$8, ITNs!H167, "ERROR")))))))) -> 0 | Q167: Global Fund
A168: Kenya | C168: 2024 | D168: Sub-national - one phase | H168: Lamu | K168: 2024-05-01 | L168: 168111 | M168: PBO | N168: =IF(M168=ITNs!$E$8, ITNs!E168, IF(M168=ITNs!$B$8, ITNs!B168, IF(M168=ITNs!$C$8, ITNs!C168, IF(M168=ITNs!$D$8, ITNs!D168, IF(M168=ITNs!$E$8, ITNs!E168, IF(M168=ITNs!$F$8, ITNs!F168, IF(M168=ITNs!$G$8, ITNs!G168, IF(M168=ITNs!$H$8, ITNs!H168, "ERROR")))))))) -> 0 | Q168: Global Fund
A169: Kenya | C169: 2024 | D169: Sub-national - one phase | H169: Kilifi | K169: 2024-06-01 | L169: 1725899 | M169: PBO | N169: =IF(M169=ITNs!$E$8, ITNs!E169, IF(M169=ITNs!$B$8, ITNs!B169, IF(M169=ITNs!$C$8, ITNs!C169, IF(M169=ITNs!$D$8, ITNs!D169, IF(M169=ITNs!$E$8, ITNs!E169, IF(M169=ITNs!$F$8, ITNs!F169, IF(M169=ITNs!$G$8, ITNs!G169, IF(M169=ITNs!$H$8, ITNs!H169, "ERROR")))))))) -> 0 | Q169: Global Fund
A170: Kenya | C170: 2024 | D170: Sub-national - one phase | H170: Tana River | K170: 2024-05-01 | L170: 379707 | M170: PBO | N170: =IF(M170=ITNs!$E$8, ITNs!E170, IF(M170=ITNs!$B$8, ITNs!B170, IF(M170=ITNs!$C$8, ITNs!C170, IF(M170=ITNs!$D$8, ITNs!D170, IF(M170=ITNs!$E$8, ITNs!E170, IF(M170=ITNs!$F$8, ITNs!F170, IF(M170=ITNs!$G$8, ITNs!G170, IF(M170=ITNs!$H$8, ITNs!H170, "ERROR")))))))) -> 243770 | Q170: Global Fund
A171: Kenya | C171: 2024 | D171: Sub-national - one phase | H171: Kwale | K171: 2024-03-01 | L171: 1043425 | M171: PBO | N171: =IF(M171=ITNs!$E$8, ITNs!E171, IF(M171=ITNs!$B$8, ITNs!B171, IF(M171=ITNs!$C$8, ITNs!C171, IF(M171=ITNs!$D$8, ITNs!D171, IF(M171=ITNs!$E$8, ITNs!E171, IF(M171=ITNs!$F$8, ITNs!F171, IF(M171=ITNs!$G$8, ITNs!G171, IF(M171=ITNs!$H$8, ITNs!H171, "ERROR")))))))) -> 0 | Q171: Global Fund
A172: Kenya | C172: 2024 | D172: Sub-national - one phase | H172: Taita Taveta | K172: 2024-03-01 | L172: 387588 | M172: PBO | N172: =IF(M172=ITNs!$E$8, ITNs!E172, IF(M172=ITNs!$B$8, ITNs!B172, IF(M172=ITNs!$C$8, ITNs!C172, IF(M172=ITNs!$D$8, ITNs!D172, IF(M172=ITNs!$E$8, ITNs!E172, IF(M172=ITNs!$F$8, ITNs!F172, IF(M172=ITNs!$G$8, ITNs!G172, IF(M172=ITNs!$H$8, ITNs!H172, "ERROR")))))))) -> 0 | Q172: Global Fund
A173: Kenya | C173: 2024 | D173: Sub-national - one phase | H173: Mombasa | K173: 2024-03-01 | L173: 1405000 | M173: PBO | N173: =IF(M173=ITNs!$E$8, ITNs!E173, IF(M173=ITNs!$B$8, ITNs!B173, IF(M173=ITNs!$C$8, ITNs!C173, IF(M173=ITNs!$D$8, ITNs!D173, IF(M173=ITNs!$E$8, ITNs!E173, IF(M173=ITNs!$F$8, ITNs!F173, IF(M173=ITNs!$G$8, ITNs!G173, IF(M173=ITNs!$H$8, ITNs!H173, "ERROR")))))))) -> 0 | Q173: Global Fund
A174: Kenya | C174: 2024 | D174: Sub-national - one phase | H174: West Pokot | K174: 2024-06-01 | L174: 770457 | M174: PBO | N174: =IF(M174=ITNs!$E$8, ITNs!E174, IF(M174=ITNs!$B$8, ITNs!B174, IF(M174=ITNs!$C$8, ITNs!C174, IF(M174=ITNs!$D$8, ITNs!D174, IF(M174=ITNs!$E$8, ITNs!E174, IF(M174=ITNs!$F$8, ITNs!F174, IF(M174=ITNs!$G$8, ITNs!G174, IF(M174=ITNs!$H$8, ITNs!H174, "ERROR")))))))) -> 480275 | Q174: Global Fund
A175: Kenya | C175: 2024 | D175: Sub-national - one phase | H175: Turkana | K175: 2024-06-01 | L175: 1135873 | M175: PBO | N175: =IF(M175=ITNs!$E$8, ITNs!E175, IF(M175=ITNs!$B$8, ITNs!B175, IF(M175=ITNs!$C$8, ITNs!C175, IF(M175=ITNs!$D$8, ITNs!D175, IF(M175=ITNs!$E$8, ITNs!E175, IF(M175=ITNs!$F$8, ITNs!F175, IF(M175=ITNs!$G$8, ITNs!G175, IF(M175=ITNs!$H$8, ITNs!H175, "ERROR")))))))) -> 716701 | Q175: Global Fund
A176: Kenya | C176: 2024 | D176: Sub-national - one phase | H176: Trans Nzoia | K176: 2024-06-01 | L176: 1150660 | M176: PBO | N176: =IF(M176=ITNs!$E$8, ITNs!E176, IF(M176=ITNs!$B$8, ITNs!B176, IF(M176=ITNs!$C$8, ITNs!C176, IF(M176=ITNs!$D$8, ITNs!D176, IF(M176=ITNs!$E$8, ITNs!E176, IF(M176=ITNs!$F$8, ITNs!F176, IF(M176=ITNs!$G$8, ITNs!G176, IF(M176=ITNs!$H$8, ITNs!H176, "ERROR")))))))) -> 765631 | Q176: Global Fund
A177: Kenya | C177: 2024 | D177: Sub-national - one phase | H177: Kirinyaga | K177: 2024-06-01 | L177: 251880 | M177: PBO | N177: =IF(M177=ITNs!$E$8, ITNs!E177, IF(M177=ITNs!$B$8, ITNs!B177, IF(M177=ITNs!$C$8, ITNs!C177, IF(M177=ITNs!$D$8, ITNs!D177, IF(M177=ITNs!$E$8, ITNs!E177, IF(M177=ITNs!$F$8, ITNs!F177, IF(M177=ITNs!$G$8, ITNs!G177, IF(M177=ITNs!$H$8, ITNs!H177, "ERROR")))))))) -> 174917 | Q177: Global Fund
A178: Kenya | C178: 2024 | D178: Sub-national - one phase | H178: Baringo | K178: 2024-06-01 | L178: 545094 | M178: PBO | N178: =IF(M178=ITNs!$E$8, ITNs!E178, IF(M178=ITNs!$B$8, ITNs!B178, IF(M178=ITNs!$C$8, ITNs!C178, IF(M178=ITNs!$D$8, ITNs!D178, IF(M178=ITNs!$E$8, ITNs!E178, IF(M178=ITNs!$F$8, ITNs!F178, IF(M178=ITNs!$G$8, ITNs!G178, IF(M178=ITNs!$H$8, ITNs!H178, "ERROR")))))))) -> 298808 | Q178: Global Fund
A179: Kenya | C179: 2024 | D179: Sub-national - one phase | H179: Bungoma | K179: 2024-07-01 | M179: PBO | N179: =IF(M179=ITNs!$E$8, ITNs!E179, IF(M179=ITNs!$B$8, ITNs!B179, IF(M179=ITNs!$C$8, ITNs!C179, IF(M179=ITNs!$D$8, ITNs!D179, IF(M179=ITNs!$E$8, ITNs!E179, IF(M179=ITNs!$F$8, ITNs!F179, IF(M179=ITNs!$G$8, ITNs!G179, IF(M179=ITNs!$H$8, ITNs!H179, "ERROR")))))))) -> 1219674
A180: Kenya | C180: 2024 | D180: Sub-national - one phase | H180: Kakamega | K180: 2024-07-01 | M180: PBO | N180: =IF(M180=ITNs!$E$8, ITNs!E180, IF(M180=ITNs!$B$8, ITNs!B180, IF(M180=ITNs!$C$8, ITNs!C180, IF(M180=ITNs!$D$8, ITNs!D180, IF(M180=ITNs!$E$8, ITNs!E180, IF(M180=ITNs!$F$8, ITNs!F180, IF(M180=ITNs!$G$8, ITNs!G180, IF(M180=ITNs!$H$8, ITNs!H180, "ERROR")))))))) -> 1363534
A181: Kenya | C181: 2024 | D181: Sub-national - one phase | H181: Vihiga | K181: 2024-07-01 | M181: PBO | N181: =IF(M181=ITNs!$E$8, ITNs!E181, IF(M181=ITNs!$B$8, ITNs!B181, IF(M181=ITNs!$C$8, ITNs!C181, IF(M181=ITNs!$D$8, ITNs!D181, IF(M181=ITNs!$E$8, ITNs!E181, IF(M181=ITNs!$F$8, ITNs!F181, IF(M181=ITNs!$G$8, ITNs!G181, IF(M181=ITNs!$H$8, ITNs!H181, "ERROR")))))))) -> 430785
A182: Kenya | C182: 2024 | D182: Sub-national - one phase | H182: Migori - Kuria East | K182: 2024-07-01 | M182: PBO | N182: =IF(M182=ITNs!$E$8, ITNs!E182, IF(M182=ITNs!$B$8, ITNs!B182, IF(M182=ITNs!$C$8, ITNs!C182, IF(M182=ITNs!$D$8, ITNs!D182, IF(M182=ITNs!$E$8, ITNs!E182, IF(M182=ITNs!$F$8, ITNs!F182, IF(M182=ITNs!$G$8, ITNs!G182, IF(M182=ITNs!$H$8, ITNs!H182, "ERROR")))))))) -> 71981
A183: Kenya | C183: 2024 | D183: Sub-national - one phase | H183: Kuria West | K183: 2024-07-01 | M183: PBO | N183: =IF(M183=ITNs!$E$8, ITNs!E183, IF(M183=ITNs!$B$8, ITNs!B183, IF(M183=ITNs!$C$8, ITNs!C183, IF(M183=ITNs!$D$8, ITNs!D183, IF(M183=ITNs!$E$8, ITNs!E183, IF(M183=ITNs!$F$8, ITNs!F183, IF(M183=ITNs!$G$8, ITNs!G183, IF(M183=ITNs!$H$8, ITNs!H183, "ERROR")))))))) -> 154938
A184: Kenya | B184: Long Rains: Typically occur from March to May, with the peak of rainfall in April. Short Rains: Generally occur from October to December, with the peak in November. | C184: 2025 | M184: Multi-products | N184: =IF(M184=ITNs!$E$8, ITNs!E184, IF(M184=ITNs!$B$8, ITNs!B184, IF(M184=ITNs!$C$8, ITNs!C184, IF(M184=ITNs!$D$8, ITNs!D184, IF(M184=ITNs!$E$8, ITNs!E184, IF(M184=ITNs!$F$8, ITNs!F184, IF(M184=ITNs!$G$8, ITNs!G184, IF(M184=ITNs!$H$8, ITNs!H184, "ERROR")))))))) -> 0
A185: Kenya | B185: Long Rains: Typically occur from March to May, with the peak of rainfall in April. Short Rains: Generally occur from October to December, with the peak in November. | C185: 2026 | M185: Multi-products | N185: =IF(M185=ITNs!$E$8, ITNs!E185, IF(M185=ITNs!$B$8, ITNs!B185, IF(M185=ITNs!$C$8, ITNs!C185, IF(M185=ITNs!$D$8, ITNs!D185, IF(M185=ITNs!$E$8, ITNs!E185, IF(M185=ITNs!$F$8, ITNs!F185, IF(M185=ITNs!$G$8, ITNs!G185, IF(M185=ITNs!$H$8, ITNs!H185, "ERROR")))))))) -> 0
A186: Liberia | B186: Rainy Season: Usually from May to October, with the heaviest rainfall occurring between June and September. | C186: 2024 | D186: National - multi-phases | K186: 2024-05-01 | L186: 5,568,262 | M186: Dual a.i. | N186: =IF(M186=ITNs!$E$8, ITNs!E186, IF(M186=ITNs!$B$8, ITNs!B186, IF(M186=ITNs!$C$8, ITNs!C186, IF(M186=ITNs!$D$8, ITNs!D186, IF(M186=ITNs!$E$8, ITNs!E186, IF(M186=ITNs!$F$8, ITNs!F186, IF(M186=ITNs!$G$8, ITNs!G186, IF(M186=ITNs!$H$8, ITNs!H186, "ERROR")))))))) -> 3093486 | Q186: Global Fund | S186: Pilot implementation | U186: At risk | V186: Training, Household Registration, Logistics and supply-chain, Distribution, Monitoring, Payment | W186: National | X186: DIGIT-HCM (eGov)
A187: Liberia | C187: 2024 | D187: National - multi-phases | H187: Gbarpolu | K187: 2024-05-01 | L187: 101,841.10 | M187: Dual a.i. | N187: =IF(M187=ITNs!$E$8, ITNs!E187, IF(M187=ITNs!$B$8, ITNs!B187, IF(M187=ITNs!$C$8, ITNs!C187, IF(M187=ITNs!$D$8, ITNs!D187, IF(M187=ITNs!$E$8, ITNs!E187, IF(M187=ITNs!$F$8, ITNs!F187, IF(M187=ITNs!$G$8, ITNs!G187, IF(M187=ITNs!$H$8, ITNs!H187, "ERROR")))))))) -> 56579 | Q187: Global Fund | V187: Training, Household Registration, Logistics and supply-chain, Distribution, Monitoring, Payment | X187: DIGIT-HCM (eGov)
A188: Liberia | C188: 2024 | D188: National - multi-phases | H188: Bomi | K188: 2024-05-01 | L188: 141,808.38 | M188: Dual a.i. | N188: =IF(M188=ITNs!$E$8, ITNs!E188, IF(M188=ITNs!$B$8, ITNs!B188, IF(M188=ITNs!$C$8, ITNs!C188, IF(M188=ITNs!$D$8, ITNs!D188, IF(M188=ITNs!$E$8, ITNs!E188, IF(M188=ITNs!$F$8, ITNs!F188, IF(M188=ITNs!$G$8, ITNs!G188, IF(M188=ITNs!$H$8, ITNs!H188, "ERROR")))))))) -> 78783 | Q188: Global Fund | V188: Training, Household Registration, Logistics and supply-chain, Distribution, Monitoring, Payment | X188: DIGIT-HCM (eGov)
A189: Liberia | C189: 2024 | D189: National - multi-phases | H189: Grand Cape Mount | K189: 2024-05-01 | L189: 189,686.80 | M189: Dual a.i. | N189: =IF(M189=ITNs!$E$8, ITNs!E189, IF(M189=ITNs!$B$8, ITNs!B189, IF(M189=ITNs!$C$8, ITNs!C189, IF(M189=ITNs!$D$8, ITNs!D189, IF(M189=ITNs!$E$8, ITNs!E189, IF(M189=ITNs!$F$8, ITNs!F189, IF(M189=ITNs!$G$8, ITNs!G189, IF(M189=ITNs!$H$8, ITNs!H189, "ERROR")))))))) -> 105382 | Q189: Global Fund | V189: Training, Household Registration, Logistics and supply-chain, Distribution, Monitoring, Payment | X189: DIGIT-HCM (eGov)
A190: Liberia | C190: 2024 | D190: National - multi-phases | H190: Montserrado | K190: 2024-05-01 | L190: 2,037,897.66 | M190: Dual a.i. | N190: =IF(M190=ITNs!$E$8, ITNs!E190, IF(M190=ITNs!$B$8, ITNs!B190, IF(M190=ITNs!$C$8, ITNs!C190, IF(M190=ITNs!$D$8, ITNs!D190, IF(M190=ITNs!$E$8, ITNs!E190, IF(M190=ITNs!$F$8, ITNs!F190, IF(M190=ITNs!$G$8, ITNs!G190, IF(M190=ITNs!$H$8, ITNs!H190, "ERROR")))))))) -> 1132166 | Q190: Global Fund | V190: Training, Household Registration, Logistics and supply-chain, Distribution, Monitoring, Payment | X190: DIGIT-HCM (eGov)
A191: Liberia | C191: 2024 | D191: National - multi-phases | F191: Door to door | H191: Margibi | K191: 2024-05-01 | L191: 323,517.21 | M191: Dual a.i. | N191: =IF(M191=ITNs!$E$8, ITNs!E191, IF(M191=ITNs!$B$8, ITNs!B191, IF(M191=ITNs!$C$8, ITNs!C191, IF(M191=ITNs!$D$8, ITNs!D191, IF(M191=ITNs!$E$8, ITNs!E191, IF(M191=ITNs!$F$8, ITNs!F191, IF(M191=ITNs!$G$8, ITNs!G191, IF(M191=ITNs!$H$8, ITNs!H191, "ERROR")))))))) -> 179732 | P191: Pilot distribution - phase 1 | Q191: Global Fund | S191: Pilot implementation | V191: Training, Household Registration, Logistics and supply-chain, Distribution, Monitoring, Payment | X191: DIGIT-HCM (eGov)
A192: Liberia | C192: 2024 | D192: National - multi-phases | H192: Bong | K192: 2024-05-01 | L192: 495,972.87 | M192: Dual a.i. | N192: =IF(M192=ITNs!$E$8, ITNs!E192, IF(M192=ITNs!$B$8, ITNs!B192, IF(M192=ITNs!$C$8, ITNs!C192, IF(M192=ITNs!$D$8, ITNs!D192, IF(M192=ITNs!$E$8, ITNs!E192, IF(M192=ITNs!$F$8, ITNs!F192, IF(M192=ITNs!$G$8, ITNs!G192, IF(M192=ITNs!$H$8, ITNs!H192, "ERROR")))))))) -> 275541 | Q192: Global Fund | V192: Training, Household Registration, Logistics and supply-chain, Distribution, Monitoring, Payment | X192: DIGIT-HCM (eGov)
A193: Liberia | C193: 2024 | D193: National - multi-phases | H193: Nimba | K193: 2024-05-01 | L193: 659,711.12 | M193: Dual a.i. | N193: =IF(M193=ITNs!$E$8, ITNs!E193, IF(M193=ITNs!$B$8, ITNs!B193, IF(M193=ITNs!$C$8, ITNs!C193, IF(M193=ITNs!$D$8, ITNs!D193, IF(M193=ITNs!$E$8, ITNs!E193, IF(M193=ITNs!$F$8, ITNs!F193, IF(M193=ITNs!$G$8, ITNs!G193, IF(M193=ITNs!$H$8, ITNs!H193, "ERROR")))))))) -> 366507 | Q193: Global Fund | V193: Training, Household Registration, Logistics and supply-chain, Distribution, Monitoring, Payment | X193: DIGIT-HCM (eGov)
A194: Liberia | C194: 2024 | D194: National - multi-phases | H194: Lofa | K194: 2024-05-01 | L194: 389,749.20 | M194: Dual a.i. | N194: =IF(M194=ITNs!$E$8, ITNs!E194, IF(M194=ITNs!$B$8, ITNs!B194, IF(M194=ITNs!$C$8, ITNs!C194, IF(M194=ITNs!$D$8, ITNs!D194, IF(M194=ITNs!$E$8, ITNs!E194, IF(M194=ITNs!$F$8, ITNs!F194, IF(M194=ITNs!$G$8, ITNs!G194, IF(M194=ITNs!$H$8, ITNs!H194, "ERROR")))))))) -> 216528 | Q194: Global Fund | V194: Training, Household Registration, Logistics and supply-chain, Distribution, Monitoring, Payment | X194: DIGIT-HCM (eGov)
A195: Liberia | C195: 2024 | D195: National - multi-phases | H195: Grand Gedeh | K195: 2024-05-01 | L195: 229,888.54 | M195: Dual a.i. | N195: =IF(M195=ITNs!$E$8, ITNs!E195, IF(M195=ITNs!$B$8, ITNs!B195, IF(M195=ITNs!$C$8, ITNs!C195, IF(M195=ITNs!$D$8, ITNs!D195, IF(M195=ITNs!$E$8, ITNs!E195, IF(M195=ITNs!$F$8, ITNs!F195, IF(M195=ITNs!$G$8, ITNs!G195, IF(M195=ITNs!$H$8, ITNs!H195, "ERROR")))))))) -> 127716 | Q195: Global Fund | V195: Training, Household Registration, Logistics and supply-chain, Distribution, Monitoring, Payment | X195: DIGIT-HCM (eGov)
A196: Liberia | C196: 2024 | D196: National - multi-phases | H196: River Gee | K196: 2024-05-01 | L196: 132,244.37 | M196: Dual a.i. | N196: =IF(M196=ITNs!$E$8, ITNs!E196, IF(M196=ITNs!$B$8, ITNs!B196, IF(M196=ITNs!$C$8, ITNs!C196, IF(M196=ITNs!$D$8, ITNs!D196, IF(M196=ITNs!$E$8, ITNs!E196, IF(M196=ITNs!$F$8, ITNs!F196, IF(M196=ITNs!$G$8, ITNs!G196, IF(M196=ITNs!$H$8, ITNs!H196, "ERROR")))))))) -> 73470 | Q196: Global Fund | V196: Training, Household Registration, Logistics and supply-chain, Distribution, Monitoring, Payment | X196: DIGIT-HCM (eGov)
A197: Liberia | C197: 2024 | D197: National - multi-phases | H197: Grand Kru | K197: 2024-05-01 | L197: 116,000.93 | M197: Dual a.i. | N197: =IF(M197=ITNs!$E$8, ITNs!E197, IF(M197=ITNs!$B$8, ITNs!B197, IF(M197=ITNs!$C$8, ITNs!C197, IF(M197=ITNs!$D$8, ITNs!D197, IF(M197=ITNs!$E$8, ITNs!E197, IF(M197=ITNs!$F$8, ITNs!F197, IF(M197=ITNs!$G$8, ITNs!G197, IF(M197=ITNs!$H$8, ITNs!H197, "ERROR")))))))) -> 64445 | Q197: Global Fund | V197: Training, Household Registration, Logistics and supply-chain, Distribution, Monitoring, Payment | X197: DIGIT-HCM (eGov)
A198: Liberia | C198: 2024 | D198: National - multi-phases | H198: Maryland | K198: 2024-05-01 | L198: 182,689.10 | M198: Dual a.i. | N198: =IF(M198=ITNs!$E$8, ITNs!E198, IF(M198=ITNs!$B$8, ITNs!B198, IF(M198=ITNs!$C$8, ITNs!C198, IF(M198=ITNs!$D$8, ITNs!D198, IF(M198=ITNs!$E$8, ITNs!E198, IF(M198=ITNs!$F$8, ITNs!F198, IF(M198=ITNs!$G$8, ITNs!G198, IF(M198=ITNs!$H$8, ITNs!H198, "ERROR")))))))) -> 101494 | Q198: Global Fund | V198: Training, Household Registration, Logistics and supply-chain, Distribution, Monitoring, Payment | X198: DIGIT-HCM (eGov)
A199: Liberia | C199: 2024 | D199: National - multi-phases | H199: Grand Bassa | K199: 2024-05-01 | L199: 311,434.62 | M199: Dual a.i. | N199: =IF(M199=ITNs!$E$8, ITNs!E199, IF(M199=ITNs!$B$8, ITNs!B199, IF(M199=ITNs!$C$8, ITNs!C199, IF(M199=ITNs!$D$8, ITNs!D199, IF(M199=ITNs!$E$8, ITNs!E199, IF(M199=ITNs!$F$8, ITNs!F199, IF(M199=ITNs!$G$8, ITNs!G199, IF(M199=ITNs!$H$8, ITNs!H199, "ERROR")))))))) -> 173020 | Q199: Global Fund | V199: Training, Household Registration, Logistics and supply-chain, Distribution, Monitoring, Payment | X199: DIGIT-HCM (eGov)
A200: Liberia | C200: 2024 | D200: National - multi-phases | H200: Sinoe | K200: 2024-05-01 | L200: 159,514.80 | M200: Dual a.i. | N200: =IF(M200=ITNs!$E$8, ITNs!E200, IF(M200=ITNs!$B$8, ITNs!B200, IF(M200=ITNs!$C$8, ITNs!C200, IF(M200=ITNs!$D$8, ITNs!D200, IF(M200=ITNs!$E$8, ITNs!E200, IF(M200=ITNs!$F$8, ITNs!F200, IF(M200=ITNs!$G$8, ITNs!G200, IF(M200=ITNs!$H$8, ITNs!H200, "ERROR")))))))) -> 88620 | Q200: Global Fund | V200: Training, Household Registration, Logistics and supply-chain, Distribution, Monitoring, Payment | X200: DIGIT-HCM (eGov)
A201: Liberia | C201: 2024 | D201: National - multi-phases | H201: Rivercess | K201: 2024-05-01 | L201: 96305.32 | M201: Dual a.i. | N201: =IF(M201=ITNs!$E$8, ITNs!E201, IF(M201=ITNs!$B$8, ITNs!B201, IF(M201=ITNs!$C$8, ITNs!C201, IF(M201=ITNs!$D$8, ITNs!D201, IF(M201=ITNs!$E$8, ITNs!E201, IF(M201=ITNs!$F$8, ITNs!F201, IF(M201=ITNs!$G$8, ITNs!G201, IF(M201=ITNs!$H$8, ITNs!H201, "ERROR")))))))) -> 53503 | Q201: Global Fund | V201: Training, Household Registration, Logistics and supply-chain, Distribution, Monitoring, Payment | X201: DIGIT-HCM (eGov)
A202: Liberia | B202: Rainy Season: Usually from May to October, with the heaviest rainfall occurring between June and September. | C202: 2026 | M202: Dual a.i. | N202: =IF(M202=ITNs!$E$8, ITNs!E202, IF(M202=ITNs!$B$8, ITNs!B202, IF(M202=ITNs!$C$8, ITNs!C202, IF(M202=ITNs!$D$8, ITNs!D202, IF(M202=ITNs!$E$8, ITNs!E202, IF(M202=ITNs!$F$8, ITNs!F202, IF(M202=ITNs!$G$8, ITNs!G202, IF(M202=ITNs!$H$8, ITNs!H202, "ERROR")))))))) -> 3281872
A203: Madagascar | B203: Typically occurs from November to April, with variations depending on the region. | C203: 2024 | D203: National - multi-phases | H203: 105 DS | K203: 2024-09-01 | M203: Multi-products | N203: =IF(M203=ITNs!$E$8, ITNs!E203, IF(M203=ITNs!$B$8, ITNs!B203, IF(M203=ITNs!$C$8, ITNs!C203, IF(M203=ITNs!$D$8, ITNs!D203, IF(M203=ITNs!$E$8, ITNs!E203, IF(M203=ITNs!$F$8, ITNs!F203, IF(M203=ITNs!$G$8, ITNs!G203, IF(M203=ITNs!$H$8, ITNs!H203, "ERROR")))))))) -> 12202920
A204: Madagascar | B204: Typically occurs from November to April, with variations depending on the region. | C204: 2025 | M204: Multi-products | N204: =IF(M204=ITNs!$E$8, ITNs!E204, IF(M204=ITNs!$B$8, ITNs!B204, IF(M204=ITNs!$C$8, ITNs!C204, IF(M204=ITNs!$D$8, ITNs!D204, IF(M204=ITNs!$E$8, ITNs!E204, IF(M204=ITNs!$F$8, ITNs!F204, IF(M204=ITNs!$G$8, ITNs!G204, IF(M204=ITNs!$H$8, ITNs!H204, "ERROR")))))))) -> 2269718
A205: Malawi | B205: Typically occurs from November to April, with variations depending on the region. | C205: 2024 | D205: National - multi-phases | F205: Fixed distribution sites | G205: Mixed | J205: No integration | K205: 2024-07-01 | L205: 19606756 | M205: Dual a.i. | N205: =IF(M205=ITNs!$E$8, ITNs!E205, IF(M205=ITNs!$B$8, ITNs!B205, IF(M205=ITNs!$C$8, ITNs!C205, IF(M205=ITNs!$D$8, ITNs!D205, IF(M205=ITNs!$E$8, ITNs!E205, IF(M205=ITNs!$F$8, ITNs!F205, IF(M205=ITNs!$G$8, ITNs!G205, IF(M205=ITNs!$H$8, ITNs!H205, "ERROR")))))))) -> 11758609 | P205: HHR : June 24 / Pilot : July- Aug | Q205: Global Fund | R205: Not available | S205: Macroplanning | T205: Pending ITN arrival | U205: On track | V205: Training , Household registration , Distribution, Logistics & in-country supply chain, Payment | W205: National | X205: Other (specify in comments) | Y205: Individual Packaging | Z205: Combination approach | AA205: First time digitalisation - the digital platform to used is iCHIS
... 285 more rows

Sheet ITNs
A1: ITNs Number by Type - table to fill-in
A8: Country | B8: Dual a.i. | C8: Pyrethroid-only | D8: PBO | E8: Other type | F8: Multi-products | J8: Dual a.i. | K8: AlphaCypermethrin + Chlorfenapyr (IG2)
A9: Afghanistan | D9: 300000 | F9: =SUM(B9:E9) -> 300000 | K9: Pyrethroid-Chlorfenapyr (CFP Dual a.i.)
A10: Afghanistan | D10: 2579711 | F10: =SUM(B10:E10) -> 2579711 | K10: Piperonyl Butoxide and Pyrethroid (PPF Dual a.i)
A11: Afghanistan | D11: 211953 | F11: =SUM(B11:E11) -> 211953 | J11: Standard | K11: Pyrethroid-ONLY (standard)
A12: Angola | B12: 99516 | C12: 189127 | F12: =SUM(B12:E12) -> 288643 | J12: PBO | K12: Pyrethroid+Piperonyl Butoxide (PBO)
A13: Angola | B13: 1751430 | C13: 2764293 | F13: =SUM(B13:E13) -> 4515723 | J13: Other | K13: i.e. Damara nets - for sleeping outside
A14: Angola | B14: 238422 | C14: 449938 | F14: =SUM(B14:E14) -> 688360
A15: Bangladesh | C15: 108155 | F15: =SUM(B15:E15) -> 108155
A16: Bangladesh | C16: 84374 | F16: 84374
A17: Bangladesh | C17: 823614 | F17: 823614
A18: Benin - ROUTINE | B18: 27223 | F18: =SUM(B18:E18) -> 27223
A19: Benin | B19: 6787230 | F19: =SUM(B19:E19) -> 6787230
A20: Benin - ROUTINE | B20: 29167 | F20: =SUM(B20:E20) -> 29167
A21: Bhutan | C21: 124000 | F21: 124000
A22: Botswana | F22: 0
A23: Botswana | F23: 0
A24: Burkina Faso | B24: 18972664 | F24: =SUM(B24:E24) -> 18972664
A25: Burkina Faso | B25: 1879488 | F25: =SUM(B25:E25) -> 1879488
A26: Burundi | B26: =SUM(B27:B73) -> 5054453 | C26: =SUM(C27:C73) -> 2921668 | D26: =SUM(D27:D73) -> 0 | E26: =SUM(E27:E73) -> 0 | F26: =SUM(B26:E26) -> 7976121
A27: Bubanza | B27: 180679 | F27: 180679
A28: Mpanda | B28: 177705 | F28: 177705
A29: Zone centre | C29: 164580 | F29: 164580
A30: Zone nord | C30: 255169 | F30: 255169
A31: Zone sud | C31: 127941 | F31: 127941
A32: Isare | C32: 200765 | F32: 200765
A33: Kabezi | C33: 177216 | F33: 177216
A34: Rwibaga | C34: 106537 | F34: 106537
A35: Bururi | C35: 120839 | F35: 120839
A36: Matana | C36: 105155 | F36: 105155
A37: Rutovu | C37: 101110 | F37: 101110
A38: Cankuzo | B38: 157752 | F38: 157752
A39: Murore | B39: 111152 | F39: 111152
A40: Bukinanyana | B40: 163094 | F40: 163094
A41: Cibitoke | B41: 159102 | F41: 159102
A42: Mabayi | B42: 159825 | F42: 159825
A43: Gitega | B43: 244531 | F43: 244531
A44: Kibuye | B44: 196964 | F44: 196964
A45: Mutaho | B45: 179359 | F45: 179359
A46: Ryansoro | C46: 136956 | F46: 136956
A47: Gahombo | B47: 177655 | F47: 177655
A48: Kayanza | B48: 224475 | F48: 224475
A49: Musema | B49: 206204 | F49: 206204
A50: Buhiga | B50: 239020 | F50: 239020
A51: Nyabikere | B51: 211538 | F51: 211538
A52: Busoni | B52: 152757 | F52: 152757
A53: Kirundo | B53: 188267 | F53: 188267
A54: Mukenke | B54: 128157 | F54: 128157
A55: Vumbi | B55: 182023 | F55: 182023
A56: Makamba | B56: 240205 | F56: 240205
A57: Nyanza-lac | B57: 210402 | F57: 210402
A58: Kiganda | C58: 155166 | F58: 155166
A59: Muramvya | C59: 152112 | F59: 152112
A60: Gashoho | C60: 152895 | F60: 152895
A61: Muyinga | C61: 249344 | F61: 249344
A62: Fota | C62: 135603 | F62: 135603
A63: Kibumbu | C63: 148257 | F63: 148257
A64: Buye | C64: 181559 | F64: 181559
A65: Kiremba | C65: 250464 | F65: 250464
A66: Bugarama | B66: 155892 | F66: 155892
A67: Rumonge | B67: 210333 | F67: 210333
A68: Gihofi | B68: 180131 | F68: 180131
A69: Rutana | B69: 166153 | F69: 166153
A70: Butezi | B70: 131122 | F70: 131122
A71: Gisuru | B71: 102678 | F71: 102678
A72: Kinyinya | B72: 107954 | F72: 107954
A73: Ruyigi | B73: 109324 | F73: 109324
A74: Cabo Verde | F74: 0
A75: Cambodia | C75: 170000 | F75: =SUM(B75:E75) -> 170000
A76: Cameroon | B76: =SUM(B77:B92) -> 794200 | C76: =SUM(C77:C92) -> 0 | D76: 0 | E76: 0 | F76: 794200
A77: Ako | B77: 35650 | F77: =SUM(B77:E77) -> 35650
A78: Bali | B78: 16000 | F78: 16000
A79: Batibo | B79: 40950 | F79: 40950
A80: Fundong | B80: 91500 | F80: 91500
A81: Mbengwi | B81: 26750 | F81: 26750
A82: Ndop | B82: 140550 | F82: 140550
A83: Njikwa | B83: 11500 | F83: 11500
A84: Nkambe | B84: 75750 | F84: 75750
A85: Nwa | B85: 35450 | F85: 35450
A86: Oku | B86: 48950 | F86: 48950
A87: Wum | B87: 75350 | F87: 75350
A88: Akwaya | B88: 38250 | F88: 38250
A89: Bangem | B89: 13950 | F89: 13950
A90: Fontem | B90: 68900 | F90: 68900
A91: Tombel | B91: 47750 | F91: 47750
A92: Wabane | B92: 26950 | F92: 26950
A93: Cameroon | B93: =SUM(B94:B101) -> 10793346 | F93: 10793346
A94: Adamaoua | B94: 856541 | F94: 856541
A95: Littoral (Douala) | B95: 2120296 | F95: 2120296
A96: Est | B96: 713206 | F96: 713206
A97: Extreme Nord | B97: 3055063 | F97: 3055063
A98: Littoral rural | B98: 379076 | F98: 379076
A99: Nord | B99: 1936619 | F99: 1936619
A100: Ouest | B100: 1240468 | F100: 1240468
A101: Sud | B101: 492077 | F101: 492077
A102: Cameroon | B102: =SUM(B103:B106) -> 5697026 | F102: 5697026
A103: Centre | B103: 981169 | F103: 981169
A104: Nord Ouest | B104: 1381361 | F104: 1381361
A105: Sud Ouest | B105: 1193807 | F105: 1193807
A106: Yaounde | B106: 2140689 | F106: 2140689
A107: CAR | B107: =B108 -> 0 | C107: 0 | D107: =D108 -> 4290650 | E107: =E108 -> 0 | F107: 4290650
A108: CAR | D108: 4290650 | F108: 4290650
A109: CAR | B109: 744750 | F109: =SUM(B109:E109) -> 744750
A110: Chad | F110: 0
A111: Comoros | C111: 121400 | F111: 121400
A112: Congo Brazzaville | C112: 4554835 | D112: 88426 | F112: 4643261
A113: Congo Brazzaville | C113: 430088 | D113: 6207 | F113: 436295
A114: Congo (Democratic Republic) | B114: =B115 -> 10164004 | C114: =C115 -> 0 | D114: 0 | E114: =E115 -> 0 | F114: =SUM(B114:E114) -> 10164004
A115: Kinshasa | B115: 10164004 | F115: 10164004
A116: Congo (Democratic Republic) | B116: 3841966 | D116: 2800000 | F116: 6641966
A117: Cote d'Ivoire | B117: 14731533 | F117: 14731533
A118: Cote d'Ivoire | B118: 534276 | C118: 167326 | F118: 701602
A119: Cote d'Ivoire | B119: 4401911 | C119: 1037840 | D119: 6769634 | F119: 12209385
A120: Djibouti | B120: 39858 | F120: 39858
A121: Djibouti | B121: 256779 | F121: 256779
A122: Djibouti | B122: 40580 | F122: 40580
A123: Equatorial Guinea - mainland | F123: 0
A124: Equatorial Guinea (Bioko) | F124: 0
A125: Eritrea | C125: 120276 | F125: 120276
A126: Eritrea | C126: 143773 | F126: 143773
A127: Eritrea | C127: 468284 | F127: 468284
A128: Eswatini | D128: 10000 | F128: 10000
A129: Eswatini | D129: 10500 | F129: 10500
A130: Ethiopia | B130: =SUM(B131:B139) -> 8066144 | F130: =SUM(B130:E130) -> 8066144
A131: Oromia | B131: 3382612 | F131: 3382612
A132: Amhara | B132: 2424706 | F132: 2424706
A133: Somali | B133: 1553104 | F133: 1553104
A134: Gambella | B134: 77035 | F134: 77035
A135: South Ethiopia | B135: 190084 | F135: 190084
A136: Central Ethiopia | B136: 167144 | F136: 167144
A137: Dire Dawa Rural kebeles | B137: 100598 | F137: 100598
A138: Benishangul Gumuz | B138: 91285 | F138: 91285
A139: Tigray | B139: 79576 | F139: 79576
A140: Gabon | F140: 0
A141: Gambia (The) | B141: 1608391 | F141: 1608391
A142: Gambia (The) | B142: 50000 | F142: 50000
A143: Gambia (The) | B143: 80000 | F143: 80000
A144: Ghana | C144: 274070 | F144: =SUM(B144:E144) -> 274070
A145: Ghana | B145: 420368 | C145: 1252776 | D145: 741011 | F145: =SUM(B145:E145) -> 2414155
A146: Ghana | B146: 1190960 | C146: 1984925 | D146: 1391027 | F146: =SUM(B146:E146) -> 4566912
A147: Guinea | B147: 191350 | F147: =SUM(B147:E147) -> 191350
A148: Guinea | B148: 5334800 | F148: =SUM(B148:E148) -> 5334800
A149: Guinea Bissau | C149: 572974 | D149: 1197886 | F149: 1770860
A150: Guinea Bissau | C150: 136950 | D150: 53258 | F150: 190208
A151: Guinea Bissau | C151: 149063 | D151: 57969 | F151: 207032
A152: Haiti | C152: 69099 | F152: 69099
A153: Haiti | C153: 101815 | F153: 101815
A154: Haiti | C154: 1052052 | F154: 1052052
A155: Honduras | C155: 23427 | D155: 47804 | F155: 71231
A156: Honduras | C156: 82720 | D156: 15916 | F156: 98636
A157: India | C157: 25221045 | F157: 25221045
A158: India | F158: 0
A159: India | F159: 0
A160: Indonesia | C160: 2285600 | F160: 2285600
A161: Indonesia | C161: 43600 | F161: 43600
A162: Indonesia | C162: 17650 | F162: 17650
A163: Kenya | D163: =SUM(D164:D183) -> 5921014 | F163: 5921014
A164: Kisumu | F164: 0
A165: Siaya | F165: 0
A166: Busia | F166: 0
A167: Migori | F167: 0
A168: Lamu | F168: 0
A169: Kilifi | F169: 0
A170: Tana River | D170: 243770 | F170: 243770
A171: Kwale | F171: 0
A172: Taita Taveta | F172: 0
A173: Mombasa | F173: 0
A174: West Pokot | D174: 480275 | F174: 480275
A175: Turkana | D175: 716701 | F175: 716701
A176: Trans Nzoia | D176: 765631 | F176: 765631
A177: Kirinyaga | D177: 174917 | F177: 174917
A178: Baringo | D178: 298808 | F178: 298808
A179: Bungoma | D179: 1219674 | F179: 1219674
A180: Kakamega | D180: 1363534 | F180: 1363534
A181: Vihiga | D181: 430785 | F181: 430785
A182: Migori - Kuria East | D182: 71981 | F182: 71981
A183: Kuria West | D183: 154938 | F183: 154938
A184: Kenya | F184: 0
A185: Kenya | F185: 0
A186: Liberia | B186: =SUM(B187:B201) -> 3093486 | C186: =SUM(C187:C201) -> 0 | D186: 0 | E186: 0 | F186: 3093486
A187: Gbarpolu | B187: 56579 | F187: =SUM(B187:E187) -> 56579
A188: Bomi | B188: 78783 | F188: 78783
A189: Grand Cape Mount | B189: 105382 | F189: 105382
A190: Montserrado | B190: 1132166 | F190: 1132166
A191: Margibi | B191: 179732 | F191: 179732
A192: Bong | B192: 275541 | F192: 275541
A193: Nimba | B193: 366507 | F193: 366507
A194: Lofa | B194: 216528 | F194: 216528
A195: Grand Gedeh | B195: 127716 | F195: 127716
A196: River Gee | B196: 73470 | F196: 73470
A197: Grand Kru | B197: 64445 | F197: 64445
A198: Maryland | B198: 101494 | F198: 101494
A199: Grand Bassa | B199: 173020 | F199: 173020
A200: Sinoe | B200: 88620 | F200: 88620
A201: Rivercess | B201: 53503 | F201: 53503
A202: Liberia | B202: 3281872 | F202: 3281872
A203: Madagascar | B203: 257850 | C203: 11945070 | F203: 12202920
A204: Madagascar | B204: 28650 | C204: 2241068 | F204: 2269718
A205: Malawi 2024 | B205: =SUM(B206:B233) -> 11758609 | C205: =SUM(C206:C233) -> 0 | D205: 0 | E205: 0 | F205: 11758609
A206: Lilongwe | B206: 1628529 | F206: =SUM(B206:E206) -> 1628529
... 284 more rows

Sheet Drop down
A3: Region | B3: Environment - Rainy season period | C3: Geographic target | D3: Campaign rollout strategy | E3: Distribution strategy | F3: Detailed geographic target (if prioritization of specific areas for ITN distribution) | G3: Integration | I3: ITN type | J3: Net brand (hidden on the AMP website) | K3: Funding partner (if applicable) | L3: Current campaign phase | M3: ITN delivery status | N3: Status | O3: Campaign components that will be digitalized | P3: Scale of digital data collection | Q3: Platform being used | R3: Packaging type of nets (individual/bale) | S3: waste management approach (reverse logistics; incineration; combo etc)
A4: West Africa | B4: Typically from May to October, with peak rainfall occurring between June and September. | C4: National - one phase | D4: Single phase | E4: Door to door | F4: National focus with prioritization of ITNs "non urban specific" | G4: Internal NMP - SMC, IRS, Malaria vaccine, Other | H4: Microplanning | I4: Dual AI | J4: Duranet - Shobikaa Impex Private Limited | K4: AMF | L4: Not started | M4: Pending ITN arrival | N4: On track | O4: Macroplanning | P4: National | Q4: IASO - Bluesquare | R4: Individual Packaging | S4: Burial
A5: Central Africa | B5: Generally from March to November, with heavy rainfall throughout this period. Some areas may experience two rainy seasons, one from March to May and another from September to November. | C5: National - multi-phases | D5: Rolling distribution | E5: Fixed distribution sites | F5: National focus with prioritization of ITNs in non-urban areas over urban areas | G5: External NMP- EPI, NTDs, Vit A, Other | H5: Digital platform | I5: PBO | J5: DuraNet Plus - Shobikaa Impex Private Limited | K5: Global Fund | L5: Macroplanning | M5: Delivered in-country | N5: At risk | O5: Microplanning | P5: Selected province/region | Q5: Commcare (Dimagi) | R5: Bale Packaging | S5: Combination approach
A6: East Africa | B6: Varied depending on the specific country and region. In general, the rainy season occurs from March to May (long rains) and from October to December (short rains), although there can be variations in timing and intensity | C6: Sub-national - one phase | D6: Multi-phase | E6: Hybrid approach | F6: No prioritization | G6: No integration | H6: SBC | I6: Standard ITN (pyrethroid-only) | J6: Interceptor - BASF SE | K6: Government | L6: Microplanning | M6: Other | N6: Off track | O6: Household registration | P6: Selected districts | Q6: DIGIT-HCM (eGov) | S6: Incineration
A7: Southern Africa | B7: Rainfall patterns vary across different parts of Southern Africa. In general, the rainy season occurs during the Southern Hemisphere summer, from November to March, with peak rainfall typically from December to February. | C7: Sub-national - multi phases | D7: Not available | F7: Mixed | H7: Supply chain/logistics | I7: Other | J7: Interceptor G2 - BASF SE | K7: Multiple | L7: Implementation | N7: Complete | O7: Distribution | P7: Other | Q7: DHIS2 | S7: Reverse Logistics
A8: North Africa | B8: North Africa is generally characterized by arid and semi-arid climates, where rainfall is minimal and irregular. Some areas may experience a rainy season during the winter months, from November to February, but this can vary greatly from year to year. | C8: No campaign this year | H8: Supervision | I8: Mixed | J8: MAGNet - VKA Polymers pvt. Ltd | K8: PMI | L8: Complete | N8: Planned | O8: Logistics & in-country supply chain | Q8: Kobo/ODK
H9: Monitoring | J9: MiraNet LLIN - A to Z Textiles Mills Ltd | K9: Not available | L9: Not available | N9: Not available | O9: Bale tracking (barcode/QR code scanning) | Q9: NetApp
H10: Other | J10: Olyset Net - Sumitomo Chemical Co Ltd | K10: Other | L10: Postponed | O10: Individual ITN tracking (barcode/QR code scanning) | Q10: Redrose
J11: Olyset Plus - Sumitomo Chemical Co Ltd | L11: No campaign | O11: Supervision | Q11: Reveal
J12: Panda Net 2.0 - Life Ideas Biological Technology Co. Ltd | L12: Pilot implementation | O12: Payment | Q12: Bespoke/custom
J13: PermaNet 2.0 - Vestergaard | O13: Attendance tracking | Q13: Other (specify in comments)
J14: PermaNet 3.0 - Vestergaard | O14: Campaign personnel tracking
J15: PermaNet Dual - Vestergaard | O15: Training
J16: Royal guard - Disease Control Technologies LLC | O16: SBC
C17: https://www.theglobalfund.org/media/11805/psm_insecticidetreatednets_list_en.pdf | J17: Royal Sentry - Disease Control Technologies LLC
J18: Royal Sentry 2.0 - Disease Control Technologies LLC
J19: SafeNet - Mainpol GmbH
J20: Tsara Boost - PPP Hollandi DMCC
J21: Tsara Net - PPP Hollandi DMCC
J22: Tsara Plus - PPP Hollandi DMCC
J23: Tsara Soft - PPP Hollandi DMCC
J24: Vector Guard - Disease Control Technologies LLC
J25: Veeralin LLIN - VKA Polymers pvt. Ltd
J26: Yahe LN - Fujian Yamei Industry & Trade Co
J27: Yorkool G3 LN - Tianjin Yorkool International Trading Co. Ltd
J28: Yorkool LN - Tianjin Yorkool International Trading Co. Ltd
